Workbook

Sheet renteberegning
C1: Forrentning - ultimoposteringer | F1: Ajourført: juli 2022 | O1: 1997 | P1: 0.05
P2: 0.07
F3: ="Rentesats indtil august 2002: Nationalbankens diskonto + "&P1*100&" %" -> Rentesats indtil august 2002: Nationalbankens diskonto + 5 % | P3: 0.08
C4: Der kan kun skrives i de grå celler ! | F4: ="Rentesats fra august 2002: Nationalbankens udlånsrente + "&P2*100&" %" -> Rentesats fra august 2002: Nationalbankens udlånsrente + 7 %
F5: ="Rentesats fra marts 2013: Nationalbankens udlånsrente + "&P3*100&" %" -> Rentesats fra marts 2013: Nationalbankens udlånsrente + 8 %
J6: Sats 2
D7: skulle være | G7: rentesats | H7: antal | I7: rentesats2 | J7: antal | L7: dagsrente | M7: dagsrente2 | N7: Beløb til
A8: rente 1 | B8: rente 2 | C8: dato | D8: indbetalt | E8: indbetalt | F8: skyldig | G8: p.a. | H8: dage | I8: p.a. | J8: dage | K8: rente | N8: betaling
A9: 0.05 | C9: 1995-01-01 | D9: 0 | E9: 0 | F9: =D9-E9 -> 0 | G9: =A9+$P$1 -> 0.1 | H9: 30 | I9: =IF(B9<>"",B9+$P$1,0) -> 0 | J9: =30-H9 -> 0 | K9: 0 | L9: =G9/360 -> 0.0002777777778 | M9: =I9/360 -> 0 | N9: =F9+K9 -> 0
A10: 0.05 | C10: 1995-02-01 | D10: 0 | E10: 0 | F10: =F9+D10-E10 -> 0 | G10: 0.1 | H10: 30 | I10: 0 | J10: =30-H10 -> 0 | K10: =(IF(F9<=0,0,F9*(L10*H10+M9*J10)))+K9 -> 0 | L10: =G10/360 -> 0.0002777777778 | M10: 0 | N10: =F10+K10 -> 0
A11: 0.05 | B11: 0.06 | C11: 1995-03-01 | D11: 0 | E11: 0 | F11: 0 | G11: 0.1 | H11: 7 | I11: 0.11 | J11: 23 | K11: 0 | L11: 0.0002777777778 | M11: 0.0003055555556 | N11: 0
A12: 0.06 | C12: 1995-04-01 | D12: 0 | E12: 0 | F12: 0 | G12: 0.11 | H12: 30 | I12: 0 | J12: 0 | K12: 0 | L12: 0.0003055555556 | M12: 0 | N12: 0
A13: 0.06 | C13: 1995-05-01 | D13: 0 | E13: 0 | F13: 0 | G13: 0.11 | H13: 30 | I13: 0 | J13: 0 | K13: 0 | L13: 0.0003055555556 | M13: 0 | N13: 0
A14: 0.06 | C14: 1995-06-01 | D14: 0 | E14: 0 | F14: 0 | G14: 0.11 | H14: 30 | I14: 0 | J14: 0 | K14: 0 | L14: 0.0003055555556 | M14: 0 | N14: 0
A15: 0.06 | B15: 0.0575 | C15: 1995-07-01 | D15: 0 | E15: 0 | F15: 0 | G15: 0.11 | H15: 5 | I15: 0.1075 | J15: 25 | K15: =(IF(F14<=0,0,F14*(L15*H15+M14*J15)))+K14 -> 0 | L15: 0.0003055555556 | M15: 0.0002986111111 | N15: 0
A16: 0.0575 | B16: 0.055 | C16: 1995-08-01 | D16: 0 | E16: 0 | F16: 0 | G16: 0.1075 | H16: 2 | I16: 0.105 | J16: 28 | K16: 0 | L16: 0.0002986111111 | M16: 0.0002916666667 | N16: 0
A17: 0.05 | C17: 1995-09-01 | D17: 0 | E17: 0 | F17: 0 | G17: 0.1 | H17: 30 | I17: 0 | J17: 0 | K17: 0 | L17: 0.0002777777778 | M17: 0 | N17: 0
A18: 0.05 | C18: 1995-10-01 | D18: 0 | E18: 0 | F18: 0 | G18: 0.1 | H18: 30 | I18: 0 | J18: 0 | K18: 0 | L18: 0.0002777777778 | M18: 0 | N18: 0
A19: 0.05 | B19: 0.0475 | C19: 1995-11-01 | D19: 0 | E19: 0 | F19: 0 | G19: 0.1 | H19: 8 | I19: 0.0975 | J19: 22 | K19: 0 | L19: 0.0002777777778 | M19: 0.0002708333333 | N19: 0
A20: 0.0475 | B20: 0.0425 | C20: 1995-12-01 | D20: 0 | E20: 0 | F20: 0 | G20: 0.0975 | H20: 14 | I20: 0.0925 | J20: 16 | K20: 0 | L20: 0.0002708333333 | M20: 0.0002569444444 | N20: 0
A21: 0.0425 | B21: 0.04 | C21: 1996-01-01 | D21: 0 | E21: 0 | F21: 0 | G21: 0.0925 | H21: 24 | I21: 0.09 | J21: 6 | K21: 0 | L21: 0.0002569444444 | M21: 0.00025 | N21: 0
A22: 0.04 | C22: 1996-02-01 | D22: 0 | E22: 0 | F22: 0 | G22: 0.09 | H22: 30 | I22: 0 | J22: 0 | K22: 0 | L22: 0.00025 | M22: 0 | N22: 0
A23: 0.04 | B23: 0.0375 | C23: 1996-03-01 | D23: 0 | E23: 0 | F23: 0 | G23: 0.09 | H23: 6 | I23: 0.0875 | J23: 24 | K23: 0 | L23: 0.00025 | M23: 0.0002430555556 | N23: 0
A24: 0.0375 | B24: 0.0325 | C24: 1996-04-01 | D24: 0 | E24: 0 | F24: 0 | G24: 0.0875 | H24: 18 | I24: 0.0825 | J24: 12 | K24: 0 | L24: 0.0002430555556 | M24: 0.0002291666667 | N24: 0
A25: 0.0325 | C25: 1996-05-01 | D25: 0 | E25: 0 | F25: 0 | G25: 0.0825 | H25: 30 | I25: 0 | J25: 0 | K25: 0 | L25: 0.0002291666667 | M25: 0 | N25: 0
A26: 0.0325 | C26: 1996-06-01 | D26: 0 | E26: 0 | F26: 0 | G26: 0.0825 | H26: 30 | I26: 0 | J26: 0 | K26: 0 | L26: 0.0002291666667 | M26: 0 | N26: 0
A27: 0.0325 | C27: 1996-07-01 | D27: 0 | E27: 0 | F27: 0 | G27: 0.0825 | H27: 30 | I27: 0 | J27: 0 | K27: 0 | L27: 0.0002291666667 | M27: 0 | N27: 0
A28: 0.0325 | C28: 1996-08-01 | D28: 0 | E28: 0 | F28: 0 | G28: 0.0825 | H28: 30 | I28: 0 | J28: 0 | K28: 0 | L28: 0.0002291666667 | M28: 0 | N28: 0
A29: 0.0325 | C29: 1996-09-01 | D29: 0 | E29: 0 | F29: 0 | G29: 0.0825 | H29: 30 | I29: 0 | J29: 0 | K29: 0 | L29: 0.0002291666667 | M29: 0 | N29: 0
A30: 0.0325 | C30: 1996-10-01 | D30: 0 | E30: 0 | F30: 0 | G30: 0.0825 | H30: 30 | I30: 0 | J30: 0 | K30: 0 | L30: 0.0002291666667 | M30: 0 | N30: 0
A31: 0.0325 | C31: 1996-11-01 | D31: 0 | E31: 0 | F31: 0 | G31: 0.0825 | H31: 30 | I31: 0 | J31: 0 | K31: 0 | L31: 0.0002291666667 | M31: 0 | N31: 0
A32: 0.0325 | C32: 1996-12-01 | D32: 0 | E32: 0 | F32: 0 | G32: 0.0825 | H32: 30 | I32: 0 | J32: 0 | K32: 0 | L32: 0.0002291666667 | M32: 0 | N32: 0
A33: 0.0325 | C33: 1997-01-01 | D33: 0 | E33: 0 | F33: 0 | G33: 0.0825 | H33: 30 | I33: 0 | J33: 0 | K33: 0 | L33: =G33/360 -> 0.0002291666667 | M33: =I33/360 -> 0 | N33: =F33+K33 -> 0
A34: 0.0325 | C34: 1997-02-01 | D34: 0 | E34: 0 | F34: =F33+D34-E34 -> 0 | G34: 0.0825 | H34: 30 | I34: 0 | J34: 0 | K34: 0 | L34: =G34/360 -> 0.0002291666667 | M34: 0 | N34: =F34+K34 -> 0
A35: 0.0325 | C35: 1997-03-01 | D35: 0 | E35: 0 | F35: 0 | G35: 0.0825 | H35: 30 | I35: 0 | J35: 0 | K35: 0 | L35: 0.0002291666667 | M35: 0 | N35: 0
A36: 0.0325 | C36: 1997-04-01 | D36: 0 | E36: 0 | F36: 0 | G36: 0.0825 | H36: 30 | I36: 0 | J36: 0 | K36: 0 | L36: 0.0002291666667 | M36: 0 | N36: 0
A37: 0.0325 | C37: 1997-05-01 | D37: 0 | E37: 0 | F37: 0 | G37: 0.0825 | H37: 30 | I37: 0 | J37: 0 | K37: 0 | L37: 0.0002291666667 | M37: 0 | N37: 0
A38: 0.0325 | C38: 1997-06-01 | D38: 0 | E38: 0 | F38: 0 | G38: 0.0825 | H38: 30 | I38: 0 | J38: 0 | K38: 0 | L38: 0.0002291666667 | M38: 0 | N38: 0
A39: 0.0325 | C39: 1997-07-01 | D39: 0 | E39: 0 | F39: 0 | G39: 0.0825 | H39: 30 | I39: 0 | J39: 0 | K39: 0 | L39: 0.0002291666667 | M39: 0 | N39: 0
A40: 0.0325 | C40: 1997-08-01 | D40: 0 | E40: 0 | F40: 0 | G40: 0.0825 | H40: 30 | I40: 0 | J40: 0 | K40: 0 | L40: 0.0002291666667 | M40: 0 | N40: 0
A41: 0.0325 | C41: 1997-09-01 | D41: 0 | E41: 0 | F41: 0 | G41: =A41+$P$1 -> 0.0825 | H41: 30 | I41: 0 | J41: 0 | K41: 0 | L41: 0.0002291666667 | M41: 0 | N41: 0
A42: 0.0325 | B42: 0.035 | C42: 1997-10-01 | D42: 0 | E42: 0 | F42: 0 | G42: 0.0825 | H42: 9 | I42: 0.085 | J42: 21 | K42: 0 | L42: 0.0002291666667 | M42: 0.0002361111111 | N42: 0
A43: 0.035 | C43: 1997-11-01 | D43: 0 | E43: 0 | F43: 0 | G43: 0.085 | H43: 30 | I43: 0 | J43: 0 | K43: 0 | L43: 0.0002361111111 | M43: 0 | N43: 0
A44: 0.035 | C44: 1997-12-01 | D44: 0 | E44: 0 | F44: 0 | G44: 0.085 | H44: 30 | I44: 0 | J44: 0 | K44: 0 | L44: 0.0002361111111 | M44: 0 | N44: 0
A45: 0.035 | C45: 1998-01-01 | D45: 0 | E45: 0 | F45: 0 | G45: 0.085 | H45: 30 | I45: 0 | J45: 0 | K45: 0 | L45: =G45/360 -> 0.0002361111111 | M45: =I45/360 -> 0 | N45: =F45+K45 -> 0
A46: 0.035 | C46: 1998-02-01 | D46: 0 | E46: 0 | F46: 0 | G46: 0.085 | H46: 30 | I46: 0 | J46: 0 | K46: 0 | L46: 0.0002361111111 | M46: 0 | N46: 0
A47: 0.035 | C47: 1998-03-01 | D47: 0 | E47: 0 | F47: 0 | G47: 0.085 | H47: 30 | I47: 0 | J47: 0 | K47: 0 | L47: 0.0002361111111 | M47: 0 | N47: 0
A48: 0.035 | C48: 1998-04-01 | D48: 0 | E48: 0 | F48: 0 | G48: 0.085 | H48: 30 | I48: =IF(B48="",0,B48+$P$1) -> 0 | J48: 0 | K48: 0 | L48: 0.0002361111111 | M48: 0 | N48: 0
A49: 0.035 | B49: 0.04 | C49: 1998-05-01 | D49: 0 | E49: 0 | F49: 0 | G49: 0.085 | H49: 5 | I49: 0.09 | J49: 25 | K49: 0 | L49: 0.0002361111111 | M49: 0.00025 | N49: 0
A50: 0.0375 | C50: 1998-06-01 | D50: 0 | E50: 0 | F50: 0 | G50: 0.0875 | H50: 30 | I50: 0 | J50: 0 | K50: 0 | L50: 0.0002430555556 | M50: 0 | N50: 0
A51: 0.0375 | C51: 1998-07-01 | D51: 0 | E51: 0 | F51: 0 | G51: 0.0875 | H51: 30 | I51: 0 | J51: 0 | K51: 0 | L51: 0.0002430555556 | M51: 0 | N51: 0
A52: 0.0375 | C52: 1998-08-01 | D52: 0 | E52: 0 | F52: 0 | G52: 0.0875 | H52: 30 | I52: 0 | J52: 0 | K52: 0 | L52: 0.0002430555556 | M52: 0 | N52: 0
A53: 0.0375 | B53: 0.0425 | C53: 1998-09-01 | D53: 0 | E53: 0 | F53: 0 | G53: 0.0875 | H53: 21 | I53: 0.0925 | J53: 9 | K53: 0 | L53: 0.0002430555556 | M53: 0.0002569444444 | N53: 0
A54: 0.0425 | C54: 1998-10-01 | D54: 0 | E54: 0 | F54: 0 | G54: 0.0925 | H54: 30 | I54: 0 | J54: 0 | K54: 0 | L54: 0.0002569444444 | M54: 0 | N54: 0
A55: 0.0425 | B55: 0.04 | C55: 1998-11-01 | D55: 0 | E55: 0 | F55: 0 | G55: 0.0925 | H55: 4 | I55: 0.09 | J55: 26 | K55: 0 | L55: 0.0002569444444 | M55: 0.00025 | N55: 0
A56: 0.04 | B56: 0.035 | C56: 1998-12-01 | D56: 0 | E56: 0 | F56: 0 | G56: 0.09 | H56: 3 | I56: 0.085 | J56: 27 | K56: 0 | L56: 0.00025 | M56: 0.0002361111111 | N56: 0
A57: 0.035 | C57: 1999-01-01 | D57: 0 | E57: 0 | F57: 0 | G57: 0.085 | H57: 30 | I57: 0 | J57: 0 | K57: 0 | L57: 0.0002361111111 | M57: 0 | N57: 0
A58: 0.035 | B58: 0.0325 | C58: 1999-02-01 | D58: 0 | E58: 0 | F58: 0 | G58: 0.085 | H58: 3 | I58: 0.0825 | J58: 27 | K58: 0 | L58: 0.0002361111111 | M58: 0.0002291666667 | N58: 0
A59: 0.0325 | C59: 1999-03-01 | D59: 0 | E59: 0 | F59: 0 | G59: 0.0825 | H59: 30 | I59: 0 | J59: 0 | K59: 0 | L59: 0.0002291666667 | M59: 0 | N59: 0
A60: 0.0325 | B60: 0.0275 | C60: 1999-04-01 | D60: 0 | E60: 0 | F60: 0 | G60: 0.0825 | H60: 8 | I60: 0.0775 | J60: 22 | K60: 0 | L60: 0.0002291666667 | M60: 0.0002152777778 | N60: 0
A61: 0.0275 | C61: 1999-05-01 | D61: 0 | E61: 0 | F61: 0 | G61: 0.0775 | H61: 30 | I61: 0 | J61: 0 | K61: 0 | L61: 0.0002152777778 | M61: 0 | N61: 0
A62: 0.0275 | C62: 1999-06-01 | D62: 0 | E62: 0 | F62: 0 | G62: 0.0775 | H62: 30 | I62: 0 | J62: 0 | K62: 0 | L62: 0.0002152777778 | M62: 0 | N62: 0
A63: 0.0275 | C63: 1999-07-01 | D63: 0 | E63: 0 | F63: 0 | G63: 0.0775 | H63: 30 | I63: 0 | J63: 0 | K63: 0 | L63: 0.0002152777778 | M63: 0 | N63: 0
A64: 0.0275 | C64: 1999-08-01 | D64: 0 | E64: 0 | F64: 0 | G64: 0.0775 | H64: 30 | I64: 0 | J64: 0 | K64: 0 | L64: 0.0002152777778 | M64: 0 | N64: 0
A65: 0.0275 | C65: 1999-09-01 | D65: 0 | E65: 0 | F65: 0 | G65: 0.0775 | H65: 30 | I65: 0 | J65: 0 | K65: 0 | L65: 0.0002152777778 | M65: 0 | N65: 0
A66: 0.0275 | C66: 1999-10-01 | D66: 0 | E66: 0 | F66: 0 | G66: 0.0775 | H66: 30 | I66: 0 | J66: 0 | K66: 0 | L66: 0.0002152777778 | M66: 0 | N66: 0
A67: 0.0275 | B67: 0.03 | C67: 1999-11-01 | D67: 0 | E67: 0 | F67: 0 | G67: 0.0775 | H67: 4 | I67: 0.08 | J67: 26 | K67: 0 | L67: 0.0002152777778 | M67: 0.0002222222222 | N67: 0
A68: 0.03 | C68: 1999-12-01 | D68: 0 | E68: 0 | F68: 0 | G68: 0.08 | H68: 30 | I68: 0 | J68: 0 | K68: 0 | L68: 0.0002222222222 | M68: 0 | N68: 0
A69: 0.03 | C69: 2000-01-01 | D69: 0 | E69: 0 | F69: 0 | G69: 0.08 | H69: 30 | I69: 0 | J69: 0 | K69: 0 | L69: =G69/360 -> 0.0002222222222 | M69: =I69/360 -> 0 | N69: =F69+K69 -> 0
A70: 0.03 | B70: 0.0325 | C70: 2000-02-01 | D70: 0 | E70: 0 | F70: 0 | G70: 0.08 | H70: 3 | I70: 0.0825 | J70: 27 | K70: 0 | L70: 0.0002222222222 | M70: 0.0002291666667 | N70: 0
A71: 0.0325 | B71: 0.035 | C71: 2000-03-01 | D71: 0 | E71: 0 | F71: 0 | G71: 0.0825 | H71: 16 | I71: 0.085 | J71: 14 | K71: 0 | L71: 0.0002291666667 | M71: 0.0002361111111 | N71: 0
A72: 0.035 | B72: 0.0375 | C72: 2000-04-01 | D72: 0 | E72: 0 | F72: 0 | G72: 0.085 | H72: 27 | I72: 0.0875 | J72: 3 | K72: 0 | L72: 0.0002361111111 | M72: 0.0002430555556 | N72: 0
A73: 0.0375 | C73: 2000-05-01 | D73: 0 | E73: 0 | F73: 0 | G73: =A73+$P$1 -> 0.0875 | H73: 30 | I73: 0 | J73: 0 | K73: 0 | L73: 0.0002430555556 | M73: 0 | N73: 0
A74: 0.0375 | B74: 0.0425 | C74: 2000-06-01 | D74: 0 | E74: 0 | F74: 0 | G74: 0.0875 | H74: 8 | I74: 0.0925 | J74: =30-H74 -> 22 | K74: =(IF(F73<=0,0,F73*(L74*H74+M73*J74)))+K73 -> 0 | L74: 0.0002430555556 | M74: 0.0002569444444 | N74: 0
A75: 0.0425 | C75: 2000-07-01 | D75: 0 | E75: 0 | F75: 0 | G75: 0.0925 | H75: 30 | I75: 0 | J75: 0 | K75: 0 | L75: 0.0002569444444 | M75: 0 | N75: 0
A76: 0.0425 | C76: 2000-08-01 | D76: 0 | E76: 0 | F76: 0 | G76: 0.0925 | H76: 30 | I76: 0 | J76: 0 | K76: 0 | L76: 0.0002569444444 | M76: 0 | N76: 0
A77: 0.045 | C77: 2000-09-01 | D77: 0 | E77: 0 | F77: 0 | G77: 0.095 | H77: 30 | I77: 0 | J77: 0 | K77: 0 | L77: 0.0002638888889 | M77: 0 | N77: 0
A78: 0.045 | B78: 0.0475 | C78: 2000-10-01 | D78: 0 | E78: 0 | F78: 0 | G78: 0.095 | H78: 5 | I78: 0.0975 | J78: 25 | K78: 0 | L78: 0.0002638888889 | M78: 0.0002708333333 | N78: 0
A79: 0.0475 | C79: 2000-11-01 | D79: 0 | E79: 0 | F79: 0 | G79: 0.0975 | H79: 30 | I79: 0 | J79: 0 | K79: 0 | L79: 0.0002708333333 | M79: 0 | N79: 0
A80: 0.0475 | C80: 2000-12-01 | D80: 0 | E80: 0 | F80: 0 | G80: 0.0975 | H80: 30 | I80: =IF(B80="",0,B80+$P$1) -> 0 | J80: 0 | K80: 0 | L80: 0.0002708333333 | M80: 0 | N80: 0
A81: 0.0475 | C81: 2001-01-01 | D81: 0 | E81: 0 | F81: 0 | G81: 0.0975 | H81: 30 | I81: 0 | J81: 0 | K81: 0 | L81: =G81/360 -> 0.0002708333333 | M81: =I81/360 -> 0 | N81: =F81+K81 -> 0
A82: 0.0475 | C82: 2001-02-01 | D82: 0 | E82: 0 | F82: 0 | G82: 0.0975 | H82: 30 | I82: 0 | J82: 0 | K82: 0 | L82: 0.0002708333333 | M82: =I82/360 -> 0 | N82: =F82+K82 -> 0
A83: 0.0475 | C83: 2001-03-01 | D83: 0 | E83: 0 | F83: 0 | G83: 0.0975 | H83: 30 | I83: 0 | J83: 0 | K83: 0 | L83: 0.0002708333333 | M83: 0 | N83: 0
A84: 0.0475 | C84: 2001-04-01 | D84: 0 | E84: 0 | F84: 0 | G84: 0.0975 | H84: 30 | I84: 0 | J84: 0 | K84: 0 | L84: 0.0002708333333 | M84: 0 | N84: 0
A85: 0.0475 | B85: 0.045 | C85: 2001-05-01 | D85: 0 | E85: 0 | F85: 0 | G85: 0.0975 | H85: 13 | I85: 0.095 | J85: 17 | K85: 0 | L85: 0.0002708333333 | M85: 0.0002638888889 | N85: 0
A86: 0.045 | C86: 2001-06-01 | D86: 0 | E86: 0 | F86: 0 | G86: 0.095 | H86: 30 | I86: 0 | J86: 0 | K86: 0 | L86: 0.0002638888889 | M86: 0 | N86: 0
A87: 0.045 | C87: 2001-07-01 | D87: 0 | E87: 0 | F87: 0 | G87: 0.095 | H87: 30 | I87: 0 | J87: 0 | K87: 0 | L87: 0.0002638888889 | M87: 0 | N87: 0
A88: 0.045 | C88: 2001-08-01 | D88: 0 | E88: 0 | F88: 0 | G88: 0.095 | H88: 30 | I88: 0 | J88: 0 | K88: 0 | L88: 0.0002638888889 | M88: 0 | N88: 0
A89: 0.0425 | B89: 0.0375 | C89: 2001-09-01 | D89: 0 | E89: 0 | F89: 0 | G89: 0.0925 | H89: 17 | I89: 0.0875 | J89: 13 | K89: 0 | L89: 0.0002569444444 | M89: 0.0002430555556 | N89: 0
A90: 0.0375 | C90: 2001-10-01 | D90: 0 | E90: 0 | F90: 0 | G90: 0.0875 | H90: 30 | I90: 0 | J90: 0 | K90: 0 | L90: 0.0002430555556 | M90: 0 | N90: 0
A91: 0.0375 | B91: 0.0325 | C91: 2001-11-01 | D91: 0 | E91: 0 | F91: 0 | G91: 0.0875 | H91: 8 | I91: 0.0825 | J91: 22 | K91: 0 | L91: 0.0002430555556 | M91: 0.0002291666667 | N91: 0
A92: 0.0325 | C92: 2001-12-01 | D92: 0 | E92: 0 | F92: 0 | G92: 0.0825 | H92: 30 | I92: 0 | J92: 0 | K92: 0 | L92: 0.0002291666667 | M92: 0 | N92: 0
A93: 0.0325 | C93: 2002-01-01 | D93: 0 | E93: 0 | F93: 0 | G93: 0.0825 | H93: =Q93 -> 31 | I93: 0 | J93: -1 | K93: 0 | L93: =G93/S$93 -> 0.0002260273973 | M93: 0 | N93: 0 | P93: 2002-01-01 | Q93: =P94-P93 -> 31 | R93: 2003-01-01 | S93: =R93-P93 -> 365
A94: 0.0325 | C94: 2002-02-01 | D94: 0 | E94: 0 | F94: 0 | G94: 0.0825 | H94: =Q94 -> 28 | I94: 0 | J94: =Q94-H94 -> 0 | K94: 0 | L94: =G94/S$93 -> 0.0002260273973 | M94: 0 | N94: 0 | P94: 2002-02-01 | Q94: 28
A95: 0.0325 | C95: 2002-03-01 | D95: 0 | E95: 0 | F95: 0 | G95: 0.0825 | H95: 31 | I95: 0 | J95: =Q95-H95 -> 0 | K95: 0 | L95: 0.0002260273973 | M95: 0 | N95: 0 | P95: 2002-03-01 | Q95: 31
A96: 0.0325 | C96: 2002-04-01 | D96: 0 | E96: 0 | F96: 0 | G96: 0.0825 | H96: 30 | I96: 0 | J96: 0 | K96: 0 | L96: 0.0002260273973 | M96: 0 | N96: 0 | P96: 2002-04-01 | Q96: 30
A97: 0.0325 | C97: 2002-05-01 | D97: 0 | E97: 0 | F97: 0 | G97: 0.0825 | H97: 31 | I97: 0 | J97: 0 | K97: 0 | L97: 0.0002260273973 | M97: 0 | N97: 0 | P97: 2002-05-01 | Q97: 31
A98: 0.0325 | C98: 2002-06-01 | D98: 0 | E98: 0 | F98: =F97+D98-E98 -> 0 | G98: 0.0825 | H98: 30 | I98: 0 | J98: 0 | K98: 0 | L98: 0.0002260273973 | M98: 0 | N98: 0 | P98: 2002-06-01 | Q98: 30
A99: 0.0325 | C99: 2002-07-01 | D99: 0 | E99: 0 | F99: 0 | G99: 0.0825 | H99: 31 | I99: 0 | J99: 0 | K99: 0 | L99: 0.0002260273973 | M99: 0 | N99: 0 | P99: 2002-07-01 | Q99: 31
A100: 0.0355 | C100: 2002-08-01 | D100: 0 | E100: 0 | F100: 0 | G100: =A100+$P$2 -> 0.1055 | H100: 31 | I100: 0 | J100: 0 | K100: 0 | L100: 0.0002890410959 | M100: 0 | N100: 0 | P100: 2002-08-01 | Q100: 31
A101: 0.0355 | C101: 2002-09-01 | D101: 0 | E101: 0 | F101: 0 | G101: 0.1055 | H101: 30 | I101: 0 | J101: 0 | K101: 0 | L101: 0.0002890410959 | M101: 0 | N101: 0 | P101: 2002-09-01 | Q101: 30
A102: 0.0355 | C102: 2002-10-01 | D102: 0 | E102: 0 | F102: 0 | G102: 0.1055 | H102: 31 | I102: 0 | J102: 0 | K102: 0 | L102: 0.0002890410959 | M102: 0 | N102: 0 | P102: 2002-10-01 | Q102: 31
A103: 0.0355 | C103: 2002-11-01 | D103: 0 | E103: 0 | F103: 0 | G103: 0.1055 | H103: 30 | I103: 0 | J103: 0 | K103: 0 | L103: 0.0002890410959 | M103: 0 | N103: 0 | P103: 2002-11-01 | Q103: 30
A104: 0.0355 | C104: 2002-12-01 | D104: 0 | E104: 0 | F104: 0 | G104: 0.1055 | H104: 31 | I104: 0 | J104: 0 | K104: 0 | L104: =G104/$S$105 -> 0.0002890410959 | M104: 0 | N104: 0 | P104: 2002-12-01 | Q104: 31
A105: 0.0295 | C105: 2003-01-01 | D105: 0 | E105: 0 | F105: 0 | G105: 0.0995 | H105: 31 | I105: 0 | J105: 0 | K105: 0 | L105: =G105/$S$105 -> 0.0002726027397 | M105: 0 | N105: 0 | P105: 2003-01-01 | Q105: 31 | R105: 2004-01-01 | S105: =R105-P105 -> 365
A106: 0.0295 | C106: 2003-02-01 | D106: 0 | E106: 0 | F106: 0 | G106: 0.0995 | H106: 28 | I106: 0 | J106: 0 | K106: 0 | L106: 0.0002726027397 | M106: 0 | N106: 0 | P106: 2003-02-01 | Q106: 28
A107: 0.0295 | C107: 2003-03-01 | D107: 0 | E107: 0 | F107: 0 | G107: 0.0995 | H107: 31 | I107: 0 | J107: 0 | K107: 0 | L107: 0.0002726027397 | M107: 0 | N107: 0 | P107: 2003-03-01 | Q107: 31
A108: 0.0295 | C108: 2003-04-01 | D108: 0 | E108: 0 | F108: 0 | G108: 0.0995 | H108: 30 | I108: 0 | J108: 0 | K108: 0 | L108: 0.0002726027397 | M108: 0 | N108: 0 | P108: 2003-04-01 | Q108: 30
A109: 0.0295 | C109: 2003-05-01 | D109: 0 | E109: 0 | F109: 0 | G109: 0.0995 | H109: 31 | I109: 0 | J109: 0 | K109: 0 | L109: 0.0002726027397 | M109: 0 | N109: 0 | P109: 2003-05-01 | Q109: 31
A110: 0.0295 | C110: 2003-06-01 | D110: 0 | E110: 0 | F110: 0 | G110: 0.0995 | H110: 30 | I110: 0 | J110: 0 | K110: 0 | L110: 0.0002726027397 | M110: 0 | N110: 0 | P110: 2003-06-01 | Q110: 30
A111: 0.0215 | C111: 2003-07-01 | D111: 0 | E111: 0 | F111: 0 | G111: 0.0915 | H111: 31 | I111: 0 | J111: 0 | K111: 0 | L111: 0.0002506849315 | M111: 0 | N111: 0 | P111: 2003-07-01 | Q111: 31
A112: 0.0215 | C112: 2003-08-01 | D112: 0 | E112: 0 | F112: 0 | G112: 0.0915 | H112: 31 | I112: 0 | J112: 0 | K112: 0 | L112: 0.0002506849315 | M112: 0 | N112: 0 | P112: 2003-08-01 | Q112: 31
A113: 0.0215 | C113: 2003-09-01 | D113: 0 | E113: 0 | F113: 0 | G113: 0.0915 | H113: 30 | I113: 0 | J113: 0 | K113: 0 | L113: 0.0002506849315 | M113: 0 | N113: 0 | P113: 2003-09-01 | Q113: 30
A114: 0.0215 | C114: 2003-10-01 | D114: 0 | E114: 0 | F114: 0 | G114: 0.0915 | H114: 31 | I114: 0 | J114: 0 | K114: 0 | L114: 0.0002506849315 | M114: 0 | N114: 0 | P114: 2003-10-01 | Q114: 31
A115: 0.0215 | C115: 2003-11-01 | D115: 0 | E115: 0 | F115: 0 | G115: 0.0915 | H115: 30 | I115: 0 | J115: 0 | K115: 0 | L115: 0.0002506849315 | M115: 0 | N115: 0 | P115: 2003-11-01 | Q115: 30
A116: 0.0215 | C116: 2003-12-01 | D116: 0 | E116: 0 | F116: 0 | G116: 0.0915 | H116: 31 | I116: 0 | J116: 0 | K116: 0 | L116: 0.0002506849315 | M116: 0 | N116: 0 | P116: 2003-12-01 | Q116: 31
A117: 0.0215 | C117: 2004-01-01 | D117: 0 | E117: 0 | F117: =F116+D117-E117 -> 0 | G117: 0.0915 | H117: 31 | I117: 0 | J117: 0 | K117: 0 | L117: =G117/$S$117 -> 0.00025 | M117: 0 | N117: 0 | P117: 2004-01-01 | Q117: 31 | R117: 2005-01-01 | S117: =R117-P117 -> 366
A118: 0.0215 | C118: 2004-02-01 | D118: 0 | E118: 0 | F118: 0 | G118: 0.0915 | H118: 29 | I118: 0 | J118: 0 | K118: 0 | L118: =G118/$S$117 -> 0.00025 | M118: 0 | N118: 0 | P118: 2004-02-01 | Q118: 29
A119: 0.0215 | C119: 2004-03-01 | D119: 0 | E119: 0 | F119: 0 | G119: 0.0915 | H119: 31 | I119: 0 | J119: 0 | K119: 0 | L119: 0.00025 | M119: 0 | N119: 0 | P119: 2004-03-01 | Q119: 31
A120: 0.0215 | C120: 2004-04-01 | D120: 0 | E120: 0 | F120: 0 | G120: 0.0915 | H120: 30 | I120: 0 | J120: 0 | K120: 0 | L120: 0.00025 | M120: 0 | N120: 0 | P120: 2004-04-01 | Q120: 30
A121: 0.0215 | C121: 2004-05-01 | D121: 0 | E121: 0 | F121: 0 | G121: 0.0915 | H121: 31 | I121: 0 | J121: 0 | K121: 0 | L121: 0.00025 | M121: 0 | N121: 0 | P121: 2004-05-01 | Q121: 31
A122: 0.0215 | C122: 2004-06-01 | D122: 0 | E122: 0 | F122: 0 | G122: 0.0915 | H122: 30 | I122: 0 | J122: 0 | K122: 0 | L122: 0.00025 | M122: 0 | N122: 0 | P122: 2004-06-01 | Q122: 30
A123: 0.0215 | C123: 2004-07-01 | D123: 0 | E123: 0 | F123: 0 | G123: 0.0915 | H123: 31 | I123: 0 | J123: 0 | K123: 0 | L123: 0.00025 | M123: 0 | N123: 0 | P123: 2004-07-01 | Q123: 31
A124: 0.0215 | C124: 2004-08-01 | D124: 0 | E124: 0 | F124: 0 | G124: 0.0915 | H124: 31 | I124: 0 | J124: 0 | K124: 0 | L124: 0.00025 | M124: 0 | N124: 0 | P124: 2004-08-01 | Q124: 31
A125: 0.0215 | C125: 2004-09-01 | D125: 0 | E125: 0 | F125: 0 | G125: 0.0915 | H125: 30 | I125: 0 | J125: 0 | K125: 0 | L125: 0.00025 | M125: 0 | N125: 0 | P125: 2004-09-01 | Q125: 30
A126: 0.0215 | C126: 2004-10-01 | D126: 0 | E126: 0 | F126: 0 | G126: 0.0915 | H126: 31 | I126: 0 | J126: 0 | K126: 0 | L126: 0.00025 | M126: 0 | N126: 0 | P126: 2004-10-01 | Q126: 31
A127: 0.0215 | C127: 2004-11-01 | D127: 0 | E127: 0 | F127: 0 | G127: 0.0915 | H127: 30 | I127: 0 | J127: 0 | K127: 0 | L127: 0.00025 | M127: 0 | N127: 0 | P127: 2004-11-01 | Q127: 30
A128: 0.0215 | C128: 2004-12-01 | D128: 0 | E128: 0 | F128: 0 | G128: 0.0915 | H128: 31 | I128: 0 | J128: 0 | K128: 0 | L128: 0.00025 | M128: 0 | N128: 0 | P128: 2004-12-01 | Q128: 31
A129: 0.0215 | C129: 2005-01-01 | D129: 0 | E129: 0 | F129: 0 | G129: 0.0915 | H129: 31 | I129: 0 | J129: 0 | K129: 0 | L129: =G129/$S$129 -> 0.0002506849315 | M129: 0 | N129: 0 | P129: 2005-01-01 | Q129: 31 | R129: 2006-01-01 | S129: =R129-P129 -> 365
A130: 0.0215 | C130: 2005-02-01 | D130: 0 | E130: 0 | F130: 0 | G130: 0.0915 | H130: 28 | I130: 0 | J130: 0 | K130: 0 | L130: =G130/$S$129 -> 0.0002506849315 | M130: 0 | N130: 0 | P130: 2005-02-01 | Q130: 28
A131: 0.0215 | C131: 2005-03-01 | D131: 0 | E131: 0 | F131: 0 | G131: 0.0915 | H131: 31 | I131: 0 | J131: 0 | K131: 0 | L131: 0.0002506849315 | M131: 0 | N131: 0 | P131: 2005-03-01 | Q131: 31
A132: 0.0215 | C132: 2005-04-01 | D132: 0 | E132: 0 | F132: 0 | G132: =A132+$P$2 -> 0.0915 | H132: 30 | I132: 0 | J132: 0 | K132: 0 | L132: 0.0002506849315 | M132: 0 | N132: 0 | P132: 2005-04-01 | Q132: 30
A133: 0.0215 | C133: 2005-05-01 | D133: 0 | E133: 0 | F133: 0 | G133: 0.0915 | H133: 31 | I133: 0 | J133: 0 | K133: 0 | L133: 0.0002506849315 | M133: 0 | N133: 0 | P133: 2005-05-01 | Q133: 31
A134: 0.0215 | C134: 2005-06-01 | D134: 0 | E134: 0 | F134: 0 | G134: 0.0915 | H134: 30 | I134: 0 | J134: 0 | K134: 0 | L134: 0.0002506849315 | M134: 0 | N134: 0 | P134: 2005-06-01 | Q134: 30
A135: 0.0215 | C135: 2005-07-01 | D135: 0 | E135: 0 | F135: 0 | G135: 0.0915 | H135: 31 | I135: 0 | J135: 0 | K135: 0 | L135: 0.0002506849315 | M135: 0 | N135: 0 | P135: 2005-07-01 | Q135: 31
A136: 0.0215 | C136: 2005-08-01 | D136: 0 | E136: 0 | F136: 0 | G136: 0.0915 | H136: 31 | I136: 0 | J136: 0 | K136: 0 | L136: 0.0002506849315 | M136: 0 | N136: 0 | P136: 2005-08-01 | Q136: 31
A137: 0.0215 | C137: 2005-09-01 | D137: 0 | E137: 0 | F137: 0 | G137: 0.0915 | H137: 30 | I137: 0 | J137: 0 | K137: 0 | L137: 0.0002506849315 | M137: 0 | N137: 0 | P137: 2005-09-01 | Q137: 30
A138: 0.0215 | C138: 2005-10-01 | D138: 0 | E138: 0 | F138: 0 | G138: 0.0915 | H138: 31 | I138: 0 | J138: 0 | K138: =(IF(F137<=0,0,F137*(L138*H138+M137*J138)))+K137 -> 0 | L138: 0.0002506849315 | M138: 0 | N138: 0 | P138: 2005-10-01 | Q138: 31
A139: 0.0215 | C139: 2005-11-01 | D139: 0 | E139: 0 | F139: 0 | G139: 0.0915 | H139: 30 | I139: 0 | J139: 0 | K139: 0 | L139: 0.0002506849315 | M139: 0 | N139: 0 | P139: 2005-11-01 | Q139: 30
A140: 0.0215 | C140: 2005-12-01 | D140: 0 | E140: 0 | F140: 0 | G140: 0.0915 | H140: 31 | I140: 0 | J140: 0 | K140: 0 | L140: 0.0002506849315 | M140: 0 | N140: 0 | P140: 2005-12-01 | Q140: 31
A141: 0.024 | C141: 2006-01-01 | D141: 0 | E141: 0 | F141: 0 | G141: 0.094 | H141: 31 | I141: 0 | J141: 0 | K141: 0 | L141: =G141/S$141 -> 0.0002575342466 | M141: 0 | N141: 0 | P141: 2006-01-01 | Q141: 31 | R141: 2007-01-01 | S141: =R141-P141 -> 365
A142: 0.024 | C142: 2006-02-01 | D142: 0 | E142: 0 | F142: 0 | G142: 0.094 | H142: 28 | I142: 0 | J142: 0 | K142: 0 | L142: =G142/S$141 -> 0.0002575342466 | M142: 0 | N142: 0 | P142: 2006-02-01 | Q142: 28
A143: 0.024 | C143: 2006-03-01 | D143: 0 | E143: 0 | F143: 0 | G143: 0.094 | H143: 31 | I143: 0 | J143: 0 | K143: 0 | L143: 0.0002575342466 | M143: 0 | N143: 0 | P143: 2006-03-01 | Q143: 31
A144: 0.024 | C144: 2006-04-01 | D144: 0 | E144: 0 | F144: 0 | G144: 0.094 | H144: 30 | I144: 0 | J144: 0 | K144: 0 | L144: 0.0002575342466 | M144: 0 | N144: 0 | P144: 2006-04-01 | Q144: 30
A145: 0.024 | C145: 2006-05-01 | D145: 0 | E145: 0 | F145: =F144+D145-E145 -> 0 | G145: 0.094 | H145: 31 | I145: 0 | J145: 0 | K145: 0 | L145: 0.0002575342466 | M145: 0 | N145: 0 | P145: 2006-05-01 | Q145: 31
A146: 0.024 | C146: 2006-06-01 | D146: 0 | E146: 0 | F146: 0 | G146: 0.094 | H146: 30 | I146: 0 | J146: 0 | K146: 0 | L146: 0.0002575342466 | M146: =I146/360 -> 0 | N146: =F146+K146 -> 0 | P146: 2006-06-01 | Q146: 30
A147: 0.03 | C147: 2006-07-01 | D147: 0 | E147: 0 | F147: 0 | G147: 0.1 | H147: 31 | I147: 0 | J147: 0 | K147: 0 | L147: 0.0002739726027 | M147: 0 | N147: 0 | P147: 2006-07-01 | Q147: 31
A148: 0.03 | C148: 2006-08-01 | D148: 0 | E148: 0 | F148: 0 | G148: 0.1 | H148: 31 | I148: 0 | J148: 0 | K148: 0 | L148: 0.0002739726027 | M148: 0 | N148: 0 | P148: 2006-08-01 | Q148: 31
A149: 0.03 | C149: 2006-09-01 | D149: 0 | E149: 0 | F149: 0 | G149: 0.1 | H149: 30 | I149: 0 | J149: 0 | K149: 0 | L149: 0.0002739726027 | M149: 0 | N149: 0 | P149: 2006-09-01 | Q149: 30
A150: 0.03 | C150: 2006-10-01 | D150: 0 | E150: 0 | F150: 0 | G150: 0.1 | H150: 31 | I150: 0 | J150: 0 | K150: 0 | L150: 0.0002739726027 | M150: 0 | N150: 0 | P150: 2006-10-01 | Q150: 31
A151: 0.03 | C151: 2006-11-01 | D151: 0 | E151: 0 | F151: 0 | G151: 0.1 | H151: 30 | I151: 0 | J151: 0 | K151: 0 | L151: 0.0002739726027 | M151: 0 | N151: 0 | P151: 2006-11-01 | Q151: 30
A152: 0.03 | C152: 2006-12-01 | D152: 0 | E152: 0 | F152: 0 | G152: 0.1 | H152: 31 | I152: 0 | J152: 0 | K152: 0 | L152: 0.0002739726027 | M152: 0 | N152: 0 | P152: 2006-12-01 | Q152: 31
A153: 0.0375 | C153: 2007-01-01 | D153: 0 | E153: 0 | F153: =F152+D153-E153 -> 0 | G153: 0.1075 | H153: 31 | I153: 0 | J153: 0 | K153: 0 | L153: =G153/$S$153 -> 0.0002945205479 | M153: =I153/360 -> 0 | N153: =F153+K153 -> 0 | P153: 2007-01-01 | Q153: 31 | R153: 2008-01-01 | S153: =R153-P153 -> 365
A154: 0.0375 | C154: 2007-02-01 | D154: 0 | E154: 0 | F154: 0 | G154: 0.1075 | H154: 28 | I154: 0 | J154: 0 | K154: 0 | L154: =G154/$S$153 -> 0.0002945205479 | M154: 0 | N154: 0 | P154: 2007-02-01 | Q154: 28
A155: 0.0375 | C155: 2007-03-01 | D155: 0 | E155: 0 | F155: 0 | G155: 0.1075 | H155: 31 | I155: 0 | J155: 0 | K155: 0 | L155: 0.0002945205479 | M155: 0 | N155: 0 | P155: 2007-03-01 | Q155: 31
A156: 0.0375 | C156: 2007-04-01 | D156: 0 | E156: 0 | F156: 0 | G156: 0.1075 | H156: 30 | I156: 0 | J156: 0 | K156: 0 | L156: 0.0002945205479 | M156: 0 | N156: 0 | P156: 2007-04-01 | Q156: 30
A157: 0.0375 | C157: 2007-05-01 | D157: 0 | E157: 0 | F157: 0 | G157: 0.1075 | H157: 31 | I157: 0 | J157: 0 | K157: 0 | L157: 0.0002945205479 | M157: 0 | N157: 0 | P157: 2007-05-01 | Q157: 31
A158: 0.0375 | C158: 2007-06-01 | D158: 0 | E158: 0 | F158: 0 | G158: 0.1075 | H158: =Q158 -> 30 | I158: 0 | J158: 0 | K158: 0 | L158: 0.0002945205479 | M158: 0 | N158: 0 | P158: 2007-06-01 | Q158: 30
A159: 0.0425 | C159: 2007-07-01 | D159: 0 | E159: 0 | F159: =F158+D159-E159 -> 0 | G159: 0.1125 | H159: 31 | I159: 0 | J159: =Q159-H159 -> 0 | K159: 0 | L159: 0.0003082191781 | M159: =I159/360 -> 0 | N159: =F159+K159 -> 0 | P159: 2007-07-01 | Q159: =P160-P159 -> 31
A160: 0.0425 | C160: 2007-08-01 | D160: 0 | E160: 0 | F160: 0 | G160: 0.1125 | H160: 31 | I160: 0 | J160: 0 | K160: 0 | L160: 0.0003082191781 | M160: 0 | N160: 0 | P160: 2007-08-01 | Q160: 31
A161: 0.0425 | C161: 2007-09-01 | D161: 0 | E161: 0 | F161: 0 | G161: 0.1125 | H161: 30 | I161: 0 | J161: 0 | K161: 0 | L161: 0.0003082191781 | M161: 0 | N161: 0 | P161: 2007-09-01 | Q161: 30
A162: 0.0425 | C162: 2007-10-01 | D162: 0 | E162: 0 | F162: 0 | G162: 0.1125 | H162: 31 | I162: 0 | J162: 0 | K162: =(IF(F161<=0,0,F161*(L162*H162+M161*J162)))+K161 -> 0 | L162: 0.0003082191781 | M162: 0 | N162: 0 | P162: 2007-10-01 | Q162: 31
A163: 0.0425 | C163: 2007-11-01 | D163: 0 | E163: 0 | F163: 0 | G163: 0.1125 | H163: 30 | I163: 0 | J163: 0 | K163: =(IF(F162<=0,0,F162*(L163*H163+M162*J163)))+K162 -> 0 | L163: 0.0003082191781 | M163: 0 | N163: 0 | P163: 2007-11-01 | Q163: 30
A164: 0.0425 | C164: 2007-12-01 | D164: 0 | E164: 0 | F164: 0 | G164: =A164+$P$2 -> 0.1125 | H164: 31 | I164: 0 | J164: 0 | K164: =(IF(F163<=0,0,F163*(L164*H164+M163*J164)))+K163 -> 0 | L164: 0.0003082191781 | M164: 0 | N164: 0 | P164: 2007-12-01 | Q164: 31
A165: 0.0425 | C165: 2008-01-01 | D165: 0 | E165: 0 | F165: =F164+D165-E165 -> 0 | G165: 0.1125 | H165: 31 | I165: 0 | J165: 0 | K165: =(IF(F164<=0,0,F164*(L165*H165)))+K164 -> 0 | L165: =G165/$S$165 -> 0.0003073770492 | M165: =I165/360 -> 0 | N165: =F165+K165 -> 0 | P165: 2008-01-01 | Q165: 31 | R165: 2009-01-01 | S165: =R165-P165 -> 366
A166: 0.0425 | C166: 2008-02-01 | D166: 0 | E166: 0 | F166: 0 | G166: 0.1125 | H166: 29 | I166: 0 | J166: 0 | K166: 0 | L166: =G166/$S$165 -> 0.0003073770492 | M166: 0 | N166: 0 | P166: 2008-02-01 | Q166: 29
A167: 0.0425 | C167: 2008-03-01 | D167: 0 | E167: 0 | F167: 0 | G167: 0.1125 | H167: 31 | I167: 0 | J167: 0 | K167: 0 | L167: 0.0003073770492 | M167: 0 | N167: 0 | P167: 2008-03-01 | Q167: 31
A168: 0.0425 | C168: 2008-04-01 | D168: 0 | E168: 0 | F168: 0 | G168: 0.1125 | H168: 30 | I168: 0 | J168: 0 | K168: 0 | L168: 0.0003073770492 | M168: 0 | N168: 0 | P168: 2008-04-01 | Q168: 30
A169: 0.0425 | C169: 2008-05-01 | D169: 0 | E169: 0 | F169: 0 | G169: 0.1125 | H169: 31 | I169: 0 | J169: 0 | K169: 0 | L169: 0.0003073770492 | M169: 0 | N169: 0 | P169: 2008-05-01 | Q169: 31
A170: 0.0425 | C170: 2008-06-01 | D170: 0 | E170: 0 | F170: 0 | G170: 0.1125 | H170: 30 | I170: 0 | J170: 0 | K170: 0 | L170: 0.0003073770492 | M170: 0 | N170: 0 | P170: 2008-06-01 | Q170: 30
A171: 0.0435 | C171: 2008-07-01 | D171: 0 | E171: 0 | F171: =F170+D171-E171 -> 0 | G171: 0.1135 | H171: 31 | I171: 0 | J171: 0 | K171: 0 | L171: 0.0003101092896 | M171: =I171/360 -> 0 | N171: =F171+K171 -> 0 | P171: 2008-07-01 | Q171: 31
A172: 0.0435 | C172: 2008-08-01 | D172: 0 | E172: 0 | F172: 0 | G172: 0.1135 | H172: 31 | I172: 0 | J172: 0 | K172: 0 | L172: 0.0003101092896 | M172: 0 | N172: 0 | P172: 2008-08-01 | Q172: 31
A173: 0.0435 | C173: 2008-09-01 | D173: 0 | E173: 0 | F173: 0 | G173: 0.1135 | H173: 30 | I173: 0 | J173: 0 | K173: 0 | L173: 0.0003101092896 | M173: 0 | N173: 0 | P173: 2008-09-01 | Q173: 30
A174: 0.0435 | C174: 2008-10-01 | D174: 0 | E174: 0 | F174: 0 | G174: 0.1135 | H174: 31 | I174: 0 | J174: 0 | K174: 0 | L174: 0.0003101092896 | M174: 0 | N174: 0 | P174: 2008-10-01 | Q174: 31
A175: 0.0435 | C175: 2008-11-01 | D175: 0 | E175: 0 | F175: 0 | G175: 0.1135 | H175: 30 | I175: 0 | J175: 0 | K175: 0 | L175: 0.0003101092896 | M175: 0 | N175: 0 | P175: 2008-11-01 | Q175: 30
A176: 0.0435 | C176: 2008-12-01 | D176: 0 | E176: 0 | F176: 0 | G176: 0.1135 | H176: 31 | I176: 0 | J176: 0 | K176: 0 | L176: 0.0003101092896 | M176: 0 | N176: 0 | P176: 2008-12-01 | Q176: 31
A177: 0.0375 | C177: 2009-01-01 | D177: 0 | E177: 0 | F177: 0 | G177: 0.1075 | H177: 31 | I177: 0 | J177: 0 | K177: 0 | L177: =G177/$S$177 -> 0.0002945205479 | M177: =I177/360 -> 0 | N177: =F177+K177 -> 0 | P177: 2009-01-01 | Q177: 31 | R177: 2010-01-01 | S177: =R177-P177 -> 365
A178: 0.0375 | C178: 2009-02-01 | D178: 0 | E178: 0 | F178: 0 | G178: 0.1075 | H178: 28 | I178: 0 | J178: 0 | K178: 0 | L178: =G178/$S$177 -> 0.0002945205479 | M178: 0 | N178: 0 | P178: 2009-02-01 | Q178: 28
A179: 0.0375 | C179: 2009-03-01 | D179: 0 | E179: 0 | F179: 0 | G179: 0.1075 | H179: 31 | I179: 0 | J179: 0 | K179: 0 | L179: 0.0002945205479 | M179: 0 | N179: 0 | P179: 2009-03-01 | Q179: 31
A180: 0.0375 | C180: 2009-04-01 | D180: 0 | E180: 0 | F180: 0 | G180: 0.1075 | H180: 30 | I180: 0 | J180: 0 | K180: 0 | L180: 0.0002945205479 | M180: 0 | N180: 0 | P180: 2009-04-01 | Q180: 30
A181: 0.0375 | C181: 2009-05-01 | D181: 0 | E181: 0 | F181: 0 | G181: 0.1075 | H181: 31 | I181: 0 | J181: 0 | K181: 0 | L181: 0.0002945205479 | M181: 0 | N181: 0 | P181: 2009-05-01 | Q181: 31
A182: 0.0375 | C182: 2009-06-01 | D182: 0 | E182: 0 | F182: 0 | G182: 0.1075 | H182: 30 | I182: 0 | J182: 0 | K182: 0 | L182: 0.0002945205479 | M182: 0 | N182: 0 | P182: 2009-06-01 | Q182: 30
A183: 0.0155 | C183: 2009-07-01 | D183: 0 | E183: 0 | F183: 0 | G183: 0.0855 | H183: 31 | I183: 0 | J183: 0 | K183: 0 | L183: 0.0002342465753 | M183: 0 | N183: 0 | P183: 2009-07-01 | Q183: 31
A184: 0.0155 | C184: 2009-08-01 | D184: 0 | E184: 0 | F184: 0 | G184: 0.0855 | H184: 31 | I184: 0 | J184: 0 | K184: 0 | L184: 0.0002342465753 | M184: 0 | N184: 0 | P184: 2009-08-01 | Q184: 31
A185: 0.0155 | C185: 2009-09-01 | D185: 0 | E185: 0 | F185: 0 | G185: 0.0855 | H185: 30 | I185: 0 | J185: 0 | K185: 0 | L185: 0.0002342465753 | M185: 0 | N185: 0 | P185: 2009-09-01 | Q185: 30
A186: 0.0155 | C186: 2009-10-01 | D186: 0 | E186: 0 | F186: 0 | G186: 0.0855 | H186: 31 | I186: 0 | J186: 0 | K186: 0 | L186: 0.0002342465753 | M186: 0 | N186: 0 | P186: 2009-10-01 | Q186: 31
A187: 0.0155 | C187: 2009-11-01 | D187: 0 | E187: 0 | F187: 0 | G187: 0.0855 | H187: 30 | I187: 0 | J187: 0 | K187: 0 | L187: 0.0002342465753 | M187: 0 | N187: 0 | P187: 2009-11-01 | Q187: 30
A188: 0.0155 | C188: 2009-12-01 | D188: 0 | E188: 0 | F188: 0 | G188: 0.0855 | H188: 31 | I188: 0 | J188: 0 | K188: 0 | L188: 0.0002342465753 | M188: 0 | N188: 0 | P188: 2009-12-01 | Q188: 31
A189: 0.012 | C189: 2010-01-01 | D189: 0 | E189: 0 | F189: =F188+D189-E189 -> 0 | G189: 0.082 | H189: 31 | I189: 0 | J189: 0 | K189: 0 | L189: =G189/$S$189 -> 0.0002246575342 | M189: =I189/360 -> 0 | N189: =F189+K189 -> 0 | P189: 2010-01-01 | Q189: 31 | R189: 2011-01-01 | S189: =R189-P189 -> 365
A190: 0.012 | C190: 2010-02-01 | D190: 0 | E190: 0 | F190: 0 | G190: 0.082 | H190: 28 | I190: 0 | J190: 0 | K190: 0 | L190: =G190/$S$189 -> 0.0002246575342 | M190: 0 | N190: 0 | P190: 2010-02-01 | Q190: 28
A191: 0.012 | C191: 2010-03-01 | D191: 0 | E191: 0 | F191: 0 | G191: 0.082 | H191: 31 | I191: 0 | J191: 0 | K191: 0 | L191: 0.0002246575342 | M191: 0 | N191: 0 | P191: 2010-03-01 | Q191: 31
A192: 0.012 | C192: 2010-04-01 | D192: 0 | E192: 0 | F192: 0 | G192: 0.082 | H192: 30 | I192: 0 | J192: 0 | K192: 0 | L192: 0.0002246575342 | M192: 0 | N192: 0 | P192: 2010-04-01 | Q192: 30
A193: 0.012 | C193: 2010-05-01 | D193: 0 | E193: 0 | F193: 0 | G193: 0.082 | H193: 31 | I193: 0 | J193: 0 | K193: 0 | L193: 0.0002246575342 | M193: 0 | N193: 0 | P193: 2010-05-01 | Q193: 31
A194: 0.012 | C194: 2010-06-01 | D194: 0 | E194: 0 | F194: 0 | G194: 0.082 | H194: 30 | I194: 0 | J194: 0 | K194: 0 | L194: 0.0002246575342 | M194: 0 | N194: 0 | P194: 2010-06-01 | Q194: 30
A195: 0.0105 | C195: 2010-07-01 | D195: 0 | E195: 0 | F195: 0 | G195: 0.0805 | H195: 31 | I195: 0 | J195: 0 | K195: 0 | L195: 0.0002205479452 | M195: =I195/360 -> 0 | N195: =F195+K195 -> 0 | P195: 2010-07-01 | Q195: 31
A196: 0.0105 | C196: 2010-08-01 | D196: 0 | E196: 0 | F196: 0 | G196: =A196+$P$2 -> 0.0805 | H196: 31 | I196: 0 | J196: 0 | K196: 0 | L196: 0.0002205479452 | M196: 0 | N196: 0 | P196: 2010-08-01 | Q196: 31
A197: 0.0105 | C197: 2010-09-01 | D197: 0 | E197: 0 | F197: 0 | G197: 0.0805 | H197: 30 | I197: 0 | J197: 0 | K197: 0 | L197: 0.0002205479452 | M197: 0 | N197: 0 | P197: 2010-09-01 | Q197: 30
A198: 0.0105 | C198: 2010-10-01 | D198: 0 | E198: 0 | F198: 0 | G198: 0.0805 | H198: 31 | I198: 0 | J198: 0 | K198: 0 | L198: 0.0002205479452 | M198: 0 | N198: 0 | P198: 2010-10-01 | Q198: 31
A199: 0.0105 | C199: 2010-11-01 | D199: 0 | E199: 0 | F199: 0 | G199: 0.0805 | H199: 30 | I199: 0 | J199: 0 | K199: 0 | L199: 0.0002205479452 | M199: 0 | N199: 0 | P199: 2010-11-01 | Q199: 30
A200: 0.0105 | C200: 2010-12-01 | D200: 0 | E200: 0 | F200: 0 | G200: 0.0805 | H200: 31 | I200: 0 | J200: 0 | K200: 0 | L200: 0.0002205479452 | M200: 0 | N200: 0 | P200: 2010-12-01 | Q200: 31
... 145 more rows

Sheet Udskrivningsark
A1: Saldo og rentetilskrivning
B2: Skulle være | F2: Beløb til
A3: dato | B3: indbetalt | C3: indbetalt | D3: skyldig | E3: Rente | F3: betaling
A4: 1995-01-01 | B4: =renteberegning!D9 -> 0 | C4: =renteberegning!E9 -> 0 | D4: =renteberegning!F9 -> 0 | E4: =renteberegning!K9 -> 0 | F4: =renteberegning!N9 -> 0
A5: 1995-02-01 | B5: =renteberegning!D10 -> 0 | C5: =renteberegning!E10 -> 0 | D5: =renteberegning!F10 -> 0 | E5: =renteberegning!K10 -> 0 | F5: =renteberegning!N10 -> 0
A6: 1995-03-01 | B6: =renteberegning!D11 -> 0 | C6: =renteberegning!E11 -> 0 | D6: =renteberegning!F11 -> 0 | E6: =renteberegning!K11 -> 0 | F6: =renteberegning!N11 -> 0
A7: 1995-04-01 | B7: =renteberegning!D12 -> 0 | C7: =renteberegning!E12 -> 0 | D7: =renteberegning!F12 -> 0 | E7: =renteberegning!K12 -> 0 | F7: =renteberegning!N12 -> 0
A8: 1995-05-01 | B8: =renteberegning!D13 -> 0 | C8: =renteberegning!E13 -> 0 | D8: =renteberegning!F13 -> 0 | E8: =renteberegning!K13 -> 0 | F8: =renteberegning!N13 -> 0
A9: 1995-06-01 | B9: =renteberegning!D14 -> 0 | C9: =renteberegning!E14 -> 0 | D9: =renteberegning!F14 -> 0 | E9: =renteberegning!K14 -> 0 | F9: =renteberegning!N14 -> 0
A10: 1995-07-01 | B10: =renteberegning!D15 -> 0 | C10: =renteberegning!E15 -> 0 | D10: =renteberegning!F15 -> 0 | E10: =renteberegning!K15 -> 0 | F10: =renteberegning!N15 -> 0
A11: 1995-08-01 | B11: =renteberegning!D16 -> 0 | C11: =renteberegning!E16 -> 0 | D11: =renteberegning!F16 -> 0 | E11: =renteberegning!K16 -> 0 | F11: =renteberegning!N16 -> 0
A12: 1995-09-01 | B12: =renteberegning!D17 -> 0 | C12: =renteberegning!E17 -> 0 | D12: =renteberegning!F17 -> 0 | E12: =renteberegning!K17 -> 0 | F12: =renteberegning!N17 -> 0
A13: 1995-10-01 | B13: =renteberegning!D18 -> 0 | C13: =renteberegning!E18 -> 0 | D13: =renteberegning!F18 -> 0 | E13: =renteberegning!K18 -> 0 | F13: =renteberegning!N18 -> 0
A14: 1995-11-01 | B14: =renteberegning!D19 -> 0 | C14: =renteberegning!E19 -> 0 | D14: =renteberegning!F19 -> 0 | E14: =renteberegning!K19 -> 0 | F14: =renteberegning!N19 -> 0
A15: 1995-12-01 | B15: =renteberegning!D20 -> 0 | C15: =renteberegning!E20 -> 0 | D15: =renteberegning!F20 -> 0 | E15: =renteberegning!K20 -> 0 | F15: =renteberegning!N20 -> 0
A16: 1996-01-01 | B16: =renteberegning!D21 -> 0 | C16: =renteberegning!E21 -> 0 | D16: =renteberegning!F21 -> 0 | E16: =renteberegning!K21 -> 0 | F16: =renteberegning!N21 -> 0
A17: 1996-02-01 | B17: =renteberegning!D22 -> 0 | C17: =renteberegning!E22 -> 0 | D17: =renteberegning!F22 -> 0 | E17: =renteberegning!K22 -> 0 | F17: =renteberegning!N22 -> 0
A18: 1996-03-01 | B18: =renteberegning!D23 -> 0 | C18: =renteberegning!E23 -> 0 | D18: =renteberegning!F23 -> 0 | E18: =renteberegning!K23 -> 0 | F18: =renteberegning!N23 -> 0
A19: 1996-04-01 | B19: =renteberegning!D24 -> 0 | C19: =renteberegning!E24 -> 0 | D19: =renteberegning!F24 -> 0 | E19: =renteberegning!K24 -> 0 | F19: =renteberegning!N24 -> 0
A20: 1996-05-01 | B20: =renteberegning!D25 -> 0 | C20: =renteberegning!E25 -> 0 | D20: =renteberegning!F25 -> 0 | E20: =renteberegning!K25 -> 0 | F20: =renteberegning!N25 -> 0
A21: 1996-06-01 | B21: =renteberegning!D26 -> 0 | C21: =renteberegning!E26 -> 0 | D21: =renteberegning!F26 -> 0 | E21: =renteberegning!K26 -> 0 | F21: =renteberegning!N26 -> 0
A22: 1996-07-01 | B22: =renteberegning!D27 -> 0 | C22: =renteberegning!E27 -> 0 | D22: =renteberegning!F27 -> 0 | E22: =renteberegning!K27 -> 0 | F22: =renteberegning!N27 -> 0
A23: 1996-08-01 | B23: =renteberegning!D28 -> 0 | C23: =renteberegning!E28 -> 0 | D23: =renteberegning!F28 -> 0 | E23: =renteberegning!K28 -> 0 | F23: =renteberegning!N28 -> 0
A24: 1996-09-01 | B24: =renteberegning!D29 -> 0 | C24: =renteberegning!E29 -> 0 | D24: =renteberegning!F29 -> 0 | E24: =renteberegning!K29 -> 0 | F24: =renteberegning!N29 -> 0
A25: 1996-10-01 | B25: =renteberegning!D30 -> 0 | C25: =renteberegning!E30 -> 0 | D25: =renteberegning!F30 -> 0 | E25: =renteberegning!K30 -> 0 | F25: =renteberegning!N30 -> 0
A26: 1996-11-01 | B26: =renteberegning!D31 -> 0 | C26: =renteberegning!E31 -> 0 | D26: =renteberegning!F31 -> 0 | E26: =renteberegning!K31 -> 0 | F26: =renteberegning!N31 -> 0
A27: 1996-12-01 | B27: =renteberegning!D32 -> 0 | C27: =renteberegning!E32 -> 0 | D27: =renteberegning!F32 -> 0 | E27: =renteberegning!K32 -> 0 | F27: =renteberegning!N32 -> 0
A28: 1997-01-01 | B28: =renteberegning!D33 -> 0 | C28: =renteberegning!E33 -> 0 | D28: =renteberegning!F33 -> 0 | E28: =renteberegning!K33 -> 0 | F28: =renteberegning!N33 -> 0
A29: 1997-02-01 | B29: =renteberegning!D34 -> 0 | C29: =renteberegning!E34 -> 0 | D29: =renteberegning!F34 -> 0 | E29: =renteberegning!K34 -> 0 | F29: =renteberegning!N34 -> 0
A30: 1997-03-01 | B30: =renteberegning!D35 -> 0 | C30: =renteberegning!E35 -> 0 | D30: =renteberegning!F35 -> 0 | E30: =renteberegning!K35 -> 0 | F30: =renteberegning!N35 -> 0
A31: 1997-04-01 | B31: =renteberegning!D36 -> 0 | C31: =renteberegning!E36 -> 0 | D31: =renteberegning!F36 -> 0 | E31: =renteberegning!K36 -> 0 | F31: =renteberegning!N36 -> 0
A32: 1997-05-01 | B32: =renteberegning!D37 -> 0 | C32: =renteberegning!E37 -> 0 | D32: =renteberegning!F37 -> 0 | E32: =renteberegning!K37 -> 0 | F32: =renteberegning!N37 -> 0
A33: 1997-06-01 | B33: =renteberegning!D38 -> 0 | C33: =renteberegning!E38 -> 0 | D33: =renteberegning!F38 -> 0 | E33: =renteberegning!K38 -> 0 | F33: =renteberegning!N38 -> 0
A34: 1997-07-01 | B34: =renteberegning!D39 -> 0 | C34: =renteberegning!E39 -> 0 | D34: =renteberegning!F39 -> 0 | E34: =renteberegning!K39 -> 0 | F34: =renteberegning!N39 -> 0
A35: 1997-08-01 | B35: =renteberegning!D40 -> 0 | C35: =renteberegning!E40 -> 0 | D35: =renteberegning!F40 -> 0 | E35: =renteberegning!K40 -> 0 | F35: =renteberegning!N40 -> 0
A36: 1997-09-01 | B36: =renteberegning!D41 -> 0 | C36: =renteberegning!E41 -> 0 | D36: =renteberegning!F41 -> 0 | E36: =renteberegning!K41 -> 0 | F36: =renteberegning!N41 -> 0
A37: 1997-10-01 | B37: =renteberegning!D42 -> 0 | C37: =renteberegning!E42 -> 0 | D37: =renteberegning!F42 -> 0 | E37: =renteberegning!K42 -> 0 | F37: =renteberegning!N42 -> 0
A38: 1997-11-01 | B38: =renteberegning!D43 -> 0 | C38: =renteberegning!E43 -> 0 | D38: =renteberegning!F43 -> 0 | E38: =renteberegning!K43 -> 0 | F38: =renteberegning!N43 -> 0
A39: 1997-12-01 | B39: =renteberegning!D44 -> 0 | C39: =renteberegning!E44 -> 0 | D39: =renteberegning!F44 -> 0 | E39: =renteberegning!K44 -> 0 | F39: =renteberegning!N44 -> 0
A40: 1998-01-01 | B40: =renteberegning!D45 -> 0 | C40: =renteberegning!E45 -> 0 | D40: =renteberegning!F45 -> 0 | E40: =renteberegning!K45 -> 0 | F40: =renteberegning!N45 -> 0
A41: 1998-02-01 | B41: =renteberegning!D46 -> 0 | C41: =renteberegning!E46 -> 0 | D41: =renteberegning!F46 -> 0 | E41: =renteberegning!K46 -> 0 | F41: =renteberegning!N46 -> 0
A42: 1998-03-01 | B42: =renteberegning!D47 -> 0 | C42: =renteberegning!E47 -> 0 | D42: =renteberegning!F47 -> 0 | E42: =renteberegning!K47 -> 0 | F42: =renteberegning!N47 -> 0
A43: 1998-04-01 | B43: =renteberegning!D48 -> 0 | C43: =renteberegning!E48 -> 0 | D43: =renteberegning!F48 -> 0 | E43: =renteberegning!K48 -> 0 | F43: =renteberegning!N48 -> 0
A44: 1998-05-01 | B44: =renteberegning!D49 -> 0 | C44: =renteberegning!E49 -> 0 | D44: =renteberegning!F49 -> 0 | E44: =renteberegning!K49 -> 0 | F44: =renteberegning!N49 -> 0
A45: 1998-06-01 | B45: =renteberegning!D50 -> 0 | C45: =renteberegning!E50 -> 0 | D45: =renteberegning!F50 -> 0 | E45: =renteberegning!K50 -> 0 | F45: =renteberegning!N50 -> 0
A46: 1998-07-01 | B46: =renteberegning!D51 -> 0 | C46: =renteberegning!E51 -> 0 | D46: =renteberegning!F51 -> 0 | E46: =renteberegning!K51 -> 0 | F46: =renteberegning!N51 -> 0
A47: 1998-08-01 | B47: =renteberegning!D52 -> 0 | C47: =renteberegning!E52 -> 0 | D47: =renteberegning!F52 -> 0 | E47: =renteberegning!K52 -> 0 | F47: =renteberegning!N52 -> 0
A48: 1998-09-01 | B48: =renteberegning!D53 -> 0 | C48: =renteberegning!E53 -> 0 | D48: =renteberegning!F53 -> 0 | E48: =renteberegning!K53 -> 0 | F48: =renteberegning!N53 -> 0
A49: 1998-10-01 | B49: =renteberegning!D54 -> 0 | C49: =renteberegning!E54 -> 0 | D49: =renteberegning!F54 -> 0 | E49: =renteberegning!K54 -> 0 | F49: =renteberegning!N54 -> 0
A50: 1998-11-01 | B50: =renteberegning!D55 -> 0 | C50: =renteberegning!E55 -> 0 | D50: =renteberegning!F55 -> 0 | E50: =renteberegning!K55 -> 0 | F50: =renteberegning!N55 -> 0
A51: 1998-12-01 | B51: =renteberegning!D56 -> 0 | C51: =renteberegning!E56 -> 0 | D51: =renteberegning!F56 -> 0 | E51: =renteberegning!K56 -> 0 | F51: =renteberegning!N56 -> 0
A52: 1999-01-01 | B52: =renteberegning!D57 -> 0 | C52: =renteberegning!E57 -> 0 | D52: =renteberegning!F57 -> 0 | E52: =renteberegning!K57 -> 0 | F52: =renteberegning!N57 -> 0
A53: 1999-02-01 | B53: =renteberegning!D58 -> 0 | C53: =renteberegning!E58 -> 0 | D53: =renteberegning!F58 -> 0 | E53: =renteberegning!K58 -> 0 | F53: =renteberegning!N58 -> 0
A54: 1999-03-01 | B54: =renteberegning!D59 -> 0 | C54: =renteberegning!E59 -> 0 | D54: =renteberegning!F59 -> 0 | E54: =renteberegning!K59 -> 0 | F54: =renteberegning!N59 -> 0
A55: 1999-04-01 | B55: =renteberegning!D60 -> 0 | C55: =renteberegning!E60 -> 0 | D55: =renteberegning!F60 -> 0 | E55: =renteberegning!K60 -> 0 | F55: =renteberegning!N60 -> 0
A56: 1999-05-01 | B56: =renteberegning!D61 -> 0 | C56: =renteberegning!E61 -> 0 | D56: =renteberegning!F61 -> 0 | E56: =renteberegning!K61 -> 0 | F56: =renteberegning!N61 -> 0
A57: 1999-06-01 | B57: =renteberegning!D62 -> 0 | C57: =renteberegning!E62 -> 0 | D57: =renteberegning!F62 -> 0 | E57: =renteberegning!K62 -> 0 | F57: =renteberegning!N62 -> 0
A58: 1999-07-01 | B58: =renteberegning!D63 -> 0 | C58: =renteberegning!E63 -> 0 | D58: =renteberegning!F63 -> 0 | E58: =renteberegning!K63 -> 0 | F58: =renteberegning!N63 -> 0
A59: 1999-08-01 | B59: =renteberegning!D64 -> 0 | C59: =renteberegning!E64 -> 0 | D59: =renteberegning!F64 -> 0 | E59: =renteberegning!K64 -> 0 | F59: =renteberegning!N64 -> 0
A60: 1999-09-01 | B60: =renteberegning!D65 -> 0 | C60: =renteberegning!E65 -> 0 | D60: =renteberegning!F65 -> 0 | E60: =renteberegning!K65 -> 0 | F60: =renteberegning!N65 -> 0
A61: 1999-10-01 | B61: =renteberegning!D66 -> 0 | C61: =renteberegning!E66 -> 0 | D61: =renteberegning!F66 -> 0 | E61: =renteberegning!K66 -> 0 | F61: =renteberegning!N66 -> 0
A62: 1999-11-01 | B62: =renteberegning!D67 -> 0 | C62: =renteberegning!E67 -> 0 | D62: =renteberegning!F67 -> 0 | E62: =renteberegning!K67 -> 0 | F62: =renteberegning!N67 -> 0
A63: 1999-12-01 | B63: =renteberegning!D68 -> 0 | C63: =renteberegning!E68 -> 0 | D63: =renteberegning!F68 -> 0 | E63: =renteberegning!K68 -> 0 | F63: =renteberegning!N68 -> 0
A64: 2000-01-01 | B64: =renteberegning!D69 -> 0 | C64: =renteberegning!E69 -> 0 | D64: =renteberegning!F69 -> 0 | E64: =renteberegning!K69 -> 0 | F64: =renteberegning!N69 -> 0
A65: 2000-02-01 | B65: =renteberegning!D70 -> 0 | C65: =renteberegning!E70 -> 0 | D65: =renteberegning!F70 -> 0 | E65: =renteberegning!K70 -> 0 | F65: =renteberegning!N70 -> 0
A66: 2000-03-01 | B66: =renteberegning!D71 -> 0 | C66: =renteberegning!E71 -> 0 | D66: =renteberegning!F71 -> 0 | E66: =renteberegning!K71 -> 0 | F66: =renteberegning!N71 -> 0
A67: 2000-04-01 | B67: =renteberegning!D72 -> 0 | C67: =renteberegning!E72 -> 0 | D67: =renteberegning!F72 -> 0 | E67: =renteberegning!K72 -> 0 | F67: =renteberegning!N72 -> 0
A68: 2000-05-01 | B68: =renteberegning!D73 -> 0 | C68: =renteberegning!E73 -> 0 | D68: =renteberegning!F73 -> 0 | E68: =renteberegning!K73 -> 0 | F68: =renteberegning!N73 -> 0
A69: 2000-06-01 | B69: =renteberegning!D74 -> 0 | C69: =renteberegning!E74 -> 0 | D69: =renteberegning!F74 -> 0 | E69: =renteberegning!K74 -> 0 | F69: =renteberegning!N74 -> 0
A70: 2000-07-01 | B70: =renteberegning!D75 -> 0 | C70: =renteberegning!E75 -> 0 | D70: =renteberegning!F75 -> 0 | E70: =renteberegning!K75 -> 0 | F70: =renteberegning!N75 -> 0
A71: 2000-08-01 | B71: =renteberegning!D76 -> 0 | C71: =renteberegning!E76 -> 0 | D71: =renteberegning!F76 -> 0 | E71: =renteberegning!K76 -> 0 | F71: =renteberegning!N76 -> 0
A72: 2000-09-01 | B72: =renteberegning!D77 -> 0 | C72: =renteberegning!E77 -> 0 | D72: =renteberegning!F77 -> 0 | E72: =renteberegning!K77 -> 0 | F72: =renteberegning!N77 -> 0
A73: 2000-10-01 | B73: =renteberegning!D78 -> 0 | C73: =renteberegning!E78 -> 0 | D73: =renteberegning!F78 -> 0 | E73: =renteberegning!K78 -> 0 | F73: =renteberegning!N78 -> 0
A74: 2000-11-01 | B74: =renteberegning!D79 -> 0 | C74: =renteberegning!E79 -> 0 | D74: =renteberegning!F79 -> 0 | E74: =renteberegning!K79 -> 0 | F74: =renteberegning!N79 -> 0
A75: 2000-12-01 | B75: =renteberegning!D80 -> 0 | C75: =renteberegning!E80 -> 0 | D75: =renteberegning!F80 -> 0 | E75: =renteberegning!K80 -> 0 | F75: =renteberegning!N80 -> 0
A76: 2001-01-01 | B76: =renteberegning!D81 -> 0 | C76: =renteberegning!E81 -> 0 | D76: =renteberegning!F81 -> 0 | E76: =renteberegning!K81 -> 0 | F76: =renteberegning!N81 -> 0
A77: 2001-02-01 | B77: =renteberegning!D82 -> 0 | C77: =renteberegning!E82 -> 0 | D77: =renteberegning!F82 -> 0 | E77: =renteberegning!K82 -> 0 | F77: =renteberegning!N82 -> 0
A78: 2001-03-01 | B78: =renteberegning!D83 -> 0 | C78: =renteberegning!E83 -> 0 | D78: =renteberegning!F83 -> 0 | E78: =renteberegning!K83 -> 0 | F78: =renteberegning!N83 -> 0
A79: 2001-04-01 | B79: =renteberegning!D84 -> 0 | C79: =renteberegning!E84 -> 0 | D79: =renteberegning!F84 -> 0 | E79: =renteberegning!K84 -> 0 | F79: =renteberegning!N84 -> 0
A80: 2001-05-01 | B80: =renteberegning!D85 -> 0 | C80: =renteberegning!E85 -> 0 | D80: =renteberegning!F85 -> 0 | E80: =renteberegning!K85 -> 0 | F80: =renteberegning!N85 -> 0
A81: 2001-06-01 | B81: =renteberegning!D86 -> 0 | C81: =renteberegning!E86 -> 0 | D81: =renteberegning!F86 -> 0 | E81: =renteberegning!K86 -> 0 | F81: =renteberegning!N86 -> 0
A82: 2001-07-01 | B82: =renteberegning!D87 -> 0 | C82: =renteberegning!E87 -> 0 | D82: =renteberegning!F87 -> 0 | E82: =renteberegning!K87 -> 0 | F82: =renteberegning!N87 -> 0
A83: 2001-08-01 | B83: =renteberegning!D88 -> 0 | C83: =renteberegning!E88 -> 0 | D83: =renteberegning!F88 -> 0 | E83: =renteberegning!K88 -> 0 | F83: =renteberegning!N88 -> 0
A84: 2001-09-01 | B84: =renteberegning!D89 -> 0 | C84: =renteberegning!E89 -> 0 | D84: =renteberegning!F89 -> 0 | E84: =renteberegning!K89 -> 0 | F84: =renteberegning!N89 -> 0
A85: 2001-10-01 | B85: =renteberegning!D90 -> 0 | C85: =renteberegning!E90 -> 0 | D85: =renteberegning!F90 -> 0 | E85: =renteberegning!K90 -> 0 | F85: =renteberegning!N90 -> 0
A86: 2001-11-01 | B86: =renteberegning!D91 -> 0 | C86: =renteberegning!E91 -> 0 | D86: =renteberegning!F91 -> 0 | E86: =renteberegning!K91 -> 0 | F86: =renteberegning!N91 -> 0
A87: 2001-12-01 | B87: =renteberegning!D92 -> 0 | C87: =renteberegning!E92 -> 0 | D87: =renteberegning!F92 -> 0 | E87: =renteberegning!K92 -> 0 | F87: =renteberegning!N92 -> 0
A88: 2002-01-01 | B88: =renteberegning!D93 -> 0 | C88: =renteberegning!E93 -> 0 | D88: =renteberegning!F93 -> 0 | E88: =renteberegning!K93 -> 0 | F88: =renteberegning!N93 -> 0
A89: 2002-02-01 | B89: =renteberegning!D94 -> 0 | C89: =renteberegning!E94 -> 0 | D89: =renteberegning!F94 -> 0 | E89: =renteberegning!K94 -> 0 | F89: =renteberegning!N94 -> 0
A90: 2002-03-01 | B90: =renteberegning!D95 -> 0 | C90: =renteberegning!E95 -> 0 | D90: =renteberegning!F95 -> 0 | E90: =renteberegning!K95 -> 0 | F90: =renteberegning!N95 -> 0
A91: 2002-04-01 | B91: =renteberegning!D96 -> 0 | C91: =renteberegning!E96 -> 0 | D91: =renteberegning!F96 -> 0 | E91: =renteberegning!K96 -> 0 | F91: =renteberegning!N96 -> 0
A92: 2002-05-01 | B92: =renteberegning!D97 -> 0 | C92: =renteberegning!E97 -> 0 | D92: =renteberegning!F97 -> 0 | E92: =renteberegning!K97 -> 0 | F92: =renteberegning!N97 -> 0
A93: 2002-06-01 | B93: =renteberegning!D98 -> 0 | C93: =renteberegning!E98 -> 0 | D93: =renteberegning!F98 -> 0 | E93: =renteberegning!K98 -> 0 | F93: =renteberegning!N98 -> 0
A94: 2002-07-01 | B94: =renteberegning!D99 -> 0 | C94: =renteberegning!E99 -> 0 | D94: =renteberegning!F99 -> 0 | E94: =renteberegning!K99 -> 0 | F94: =renteberegning!N99 -> 0
A95: 2002-08-01 | B95: =renteberegning!D100 -> 0 | C95: =renteberegning!E100 -> 0 | D95: =renteberegning!F100 -> 0 | E95: =renteberegning!K100 -> 0 | F95: =renteberegning!N100 -> 0
A96: 2002-09-01 | B96: =renteberegning!D101 -> 0 | C96: =renteberegning!E101 -> 0 | D96: =renteberegning!F101 -> 0 | E96: =renteberegning!K101 -> 0 | F96: =renteberegning!N101 -> 0
A97: 2002-10-01 | B97: =renteberegning!D102 -> 0 | C97: =renteberegning!E102 -> 0 | D97: =renteberegning!F102 -> 0 | E97: =renteberegning!K102 -> 0 | F97: =renteberegning!N102 -> 0
A98: 2002-11-01 | B98: =renteberegning!D103 -> 0 | C98: =renteberegning!E103 -> 0 | D98: =renteberegning!F103 -> 0 | E98: =renteberegning!K103 -> 0 | F98: =renteberegning!N103 -> 0
A99: 2002-12-01 | B99: =renteberegning!D104 -> 0 | C99: =renteberegning!E104 -> 0 | D99: =renteberegning!F104 -> 0 | E99: =renteberegning!K104 -> 0 | F99: =renteberegning!N104 -> 0
A100: 2003-01-01 | B100: =renteberegning!D105 -> 0 | C100: =renteberegning!E105 -> 0 | D100: =renteberegning!F105 -> 0 | E100: =renteberegning!K105 -> 0 | F100: =renteberegning!N105 -> 0
A101: 2003-02-01 | B101: =renteberegning!D106 -> 0 | C101: =renteberegning!E106 -> 0 | D101: =renteberegning!F106 -> 0 | E101: =renteberegning!K106 -> 0 | F101: =renteberegning!N106 -> 0
A102: 2003-03-01 | B102: =renteberegning!D107 -> 0 | C102: =renteberegning!E107 -> 0 | D102: =renteberegning!F107 -> 0 | E102: =renteberegning!K107 -> 0 | F102: =renteberegning!N107 -> 0
A103: 2003-04-01 | B103: =renteberegning!D108 -> 0 | C103: =renteberegning!E108 -> 0 | D103: =renteberegning!F108 -> 0 | E103: =renteberegning!K108 -> 0 | F103: =renteberegning!N108 -> 0
A104: 2003-05-01 | B104: =renteberegning!D109 -> 0 | C104: =renteberegning!E109 -> 0 | D104: =renteberegning!F109 -> 0 | E104: =renteberegning!K109 -> 0 | F104: =renteberegning!N109 -> 0
A105: 2003-06-01 | B105: =renteberegning!D110 -> 0 | C105: =renteberegning!E110 -> 0 | D105: =renteberegning!F110 -> 0 | E105: =renteberegning!K110 -> 0 | F105: =renteberegning!N110 -> 0
A106: 2003-07-01 | B106: =renteberegning!D111 -> 0 | C106: =renteberegning!E111 -> 0 | D106: =renteberegning!F111 -> 0 | E106: =renteberegning!K111 -> 0 | F106: =renteberegning!N111 -> 0
A107: 2003-08-01 | B107: =renteberegning!D112 -> 0 | C107: =renteberegning!E112 -> 0 | D107: =renteberegning!F112 -> 0 | E107: =renteberegning!K112 -> 0 | F107: =renteberegning!N112 -> 0
A108: 2003-09-01 | B108: =renteberegning!D113 -> 0 | C108: =renteberegning!E113 -> 0 | D108: =renteberegning!F113 -> 0 | E108: =renteberegning!K113 -> 0 | F108: =renteberegning!N113 -> 0
A109: 2003-10-01 | B109: =renteberegning!D114 -> 0 | C109: =renteberegning!E114 -> 0 | D109: =renteberegning!F114 -> 0 | E109: =renteberegning!K114 -> 0 | F109: =renteberegning!N114 -> 0
A110: 2003-11-01 | B110: =renteberegning!D115 -> 0 | C110: =renteberegning!E115 -> 0 | D110: =renteberegning!F115 -> 0 | E110: =renteberegning!K115 -> 0 | F110: =renteberegning!N115 -> 0
A111: 2003-12-01 | B111: =renteberegning!D116 -> 0 | C111: =renteberegning!E116 -> 0 | D111: =renteberegning!F116 -> 0 | E111: =renteberegning!K116 -> 0 | F111: =renteberegning!N116 -> 0
A112: 2004-01-01 | B112: =renteberegning!D117 -> 0 | C112: =renteberegning!E117 -> 0 | D112: =renteberegning!F117 -> 0 | E112: =renteberegning!K117 -> 0 | F112: =renteberegning!N117 -> 0
A113: 2004-02-01 | B113: =renteberegning!D118 -> 0 | C113: =renteberegning!E118 -> 0 | D113: =renteberegning!F118 -> 0 | E113: =renteberegning!K118 -> 0 | F113: =renteberegning!N118 -> 0
A114: 2004-03-01 | B114: =renteberegning!D119 -> 0 | C114: =renteberegning!E119 -> 0 | D114: =renteberegning!F119 -> 0 | E114: =renteberegning!K119 -> 0 | F114: =renteberegning!N119 -> 0
A115: 2004-04-01 | B115: =renteberegning!D120 -> 0 | C115: =renteberegning!E120 -> 0 | D115: =renteberegning!F120 -> 0 | E115: =renteberegning!K120 -> 0 | F115: =renteberegning!N120 -> 0
A116: 2004-05-01 | B116: =renteberegning!D121 -> 0 | C116: =renteberegning!E121 -> 0 | D116: =renteberegning!F121 -> 0 | E116: =renteberegning!K121 -> 0 | F116: =renteberegning!N121 -> 0
A117: 2004-06-01 | B117: =renteberegning!D122 -> 0 | C117: =renteberegning!E122 -> 0 | D117: =renteberegning!F122 -> 0 | E117: =renteberegning!K122 -> 0 | F117: =renteberegning!N122 -> 0
A118: 2004-07-01 | B118: =renteberegning!D123 -> 0 | C118: =renteberegning!E123 -> 0 | D118: =renteberegning!F123 -> 0 | E118: =renteberegning!K123 -> 0 | F118: =renteberegning!N123 -> 0
A119: 2004-08-01 | B119: =renteberegning!D124 -> 0 | C119: =renteberegning!E124 -> 0 | D119: =renteberegning!F124 -> 0 | E119: =renteberegning!K124 -> 0 | F119: =renteberegning!N124 -> 0
A120: 2004-09-01 | B120: =renteberegning!D125 -> 0 | C120: =renteberegning!E125 -> 0 | D120: =renteberegning!F125 -> 0 | E120: =renteberegning!K125 -> 0 | F120: =renteberegning!N125 -> 0
A121: 2004-10-01 | B121: =renteberegning!D126 -> 0 | C121: =renteberegning!E126 -> 0 | D121: =renteberegning!F126 -> 0 | E121: =renteberegning!K126 -> 0 | F121: =renteberegning!N126 -> 0
A122: 2004-11-01 | B122: =renteberegning!D127 -> 0 | C122: =renteberegning!E127 -> 0 | D122: =renteberegning!F127 -> 0 | E122: =renteberegning!K127 -> 0 | F122: =renteberegning!N127 -> 0
A123: 2004-12-01 | B123: =renteberegning!D128 -> 0 | C123: =renteberegning!E128 -> 0 | D123: =renteberegning!F128 -> 0 | E123: =renteberegning!K128 -> 0 | F123: =renteberegning!N128 -> 0
A124: 2005-01-01 | B124: =renteberegning!D129 -> 0 | C124: =renteberegning!E129 -> 0 | D124: =renteberegning!F129 -> 0 | E124: =renteberegning!K129 -> 0 | F124: =renteberegning!N129 -> 0
A125: 2005-02-01 | B125: =renteberegning!D130 -> 0 | C125: =renteberegning!E130 -> 0 | D125: =renteberegning!F130 -> 0 | E125: =renteberegning!K130 -> 0 | F125: =renteberegning!N130 -> 0
A126: 2005-03-01 | B126: =renteberegning!D131 -> 0 | C126: =renteberegning!E131 -> 0 | D126: =renteberegning!F131 -> 0 | E126: =renteberegning!K131 -> 0 | F126: =renteberegning!N131 -> 0
A127: 2005-04-01 | B127: =renteberegning!D132 -> 0 | C127: =renteberegning!E132 -> 0 | D127: =renteberegning!F132 -> 0 | E127: =renteberegning!K132 -> 0 | F127: =renteberegning!N132 -> 0
A128: 2005-05-01 | B128: =renteberegning!D133 -> 0 | C128: =renteberegning!E133 -> 0 | D128: =renteberegning!F133 -> 0 | E128: =renteberegning!K133 -> 0 | F128: =renteberegning!N133 -> 0
A129: 2005-06-01 | B129: =renteberegning!D134 -> 0 | C129: =renteberegning!E134 -> 0 | D129: =renteberegning!F134 -> 0 | E129: =renteberegning!K134 -> 0 | F129: =renteberegning!N134 -> 0
A130: 2005-07-01 | B130: =renteberegning!D135 -> 0 | C130: =renteberegning!E135 -> 0 | D130: =renteberegning!F135 -> 0 | E130: =renteberegning!K135 -> 0 | F130: =renteberegning!N135 -> 0
A131: 2005-08-01 | B131: =renteberegning!D136 -> 0 | C131: =renteberegning!E136 -> 0 | D131: =renteberegning!F136 -> 0 | E131: =renteberegning!K136 -> 0 | F131: =renteberegning!N136 -> 0
A132: 2005-09-01 | B132: =renteberegning!D137 -> 0 | C132: =renteberegning!E137 -> 0 | D132: =renteberegning!F137 -> 0 | E132: =renteberegning!K137 -> 0 | F132: =renteberegning!N137 -> 0
A133: 2005-10-01 | B133: =renteberegning!D138 -> 0 | C133: =renteberegning!E138 -> 0 | D133: =renteberegning!F138 -> 0 | E133: =renteberegning!K138 -> 0 | F133: =renteberegning!N138 -> 0
A134: 2005-11-01 | B134: =renteberegning!D139 -> 0 | C134: =renteberegning!E139 -> 0 | D134: =renteberegning!F139 -> 0 | E134: =renteberegning!K139 -> 0 | F134: =renteberegning!N139 -> 0
A135: 2005-12-01 | B135: =renteberegning!D140 -> 0 | C135: =renteberegning!E140 -> 0 | D135: =renteberegning!F140 -> 0 | E135: =renteberegning!K140 -> 0 | F135: =renteberegning!N140 -> 0
A136: 2006-01-01 | B136: =renteberegning!D141 -> 0 | C136: =renteberegning!E141 -> 0 | D136: =renteberegning!F141 -> 0 | E136: =renteberegning!K141 -> 0 | F136: =renteberegning!N141 -> 0
A137: 2006-02-01 | B137: =renteberegning!D142 -> 0 | C137: =renteberegning!E142 -> 0 | D137: =renteberegning!F142 -> 0 | E137: =renteberegning!K142 -> 0 | F137: =renteberegning!N142 -> 0
A138: 2006-03-01 | B138: =renteberegning!D143 -> 0 | C138: =renteberegning!E143 -> 0 | D138: =renteberegning!F143 -> 0 | E138: =renteberegning!K143 -> 0 | F138: =renteberegning!N143 -> 0
A139: 2006-04-01 | B139: =renteberegning!D144 -> 0 | C139: =renteberegning!E144 -> 0 | D139: =renteberegning!F144 -> 0 | E139: =renteberegning!K144 -> 0 | F139: =renteberegning!N144 -> 0
A140: 2006-05-01 | B140: =renteberegning!D145 -> 0 | C140: =renteberegning!E145 -> 0 | D140: =renteberegning!F145 -> 0 | E140: =renteberegning!K145 -> 0 | F140: =renteberegning!N145 -> 0
A141: 2006-06-01 | B141: =renteberegning!D146 -> 0 | C141: =renteberegning!E146 -> 0 | D141: =renteberegning!F146 -> 0 | E141: =renteberegning!K146 -> 0 | F141: =renteberegning!N146 -> 0
A142: 2006-07-01 | B142: =renteberegning!D147 -> 0 | C142: =renteberegning!E147 -> 0 | D142: =renteberegning!F147 -> 0 | E142: =renteberegning!K147 -> 0 | F142: =renteberegning!N147 -> 0
A143: 2006-08-01 | B143: =renteberegning!D148 -> 0 | C143: =renteberegning!E148 -> 0 | D143: =renteberegning!F148 -> 0 | E143: =renteberegning!K148 -> 0 | F143: =renteberegning!N148 -> 0
A144: 2006-09-01 | B144: =renteberegning!D149 -> 0 | C144: =renteberegning!E149 -> 0 | D144: =renteberegning!F149 -> 0 | E144: =renteberegning!K149 -> 0 | F144: =renteberegning!N149 -> 0
A145: 2006-10-01 | B145: =renteberegning!D150 -> 0 | C145: =renteberegning!E150 -> 0 | D145: =renteberegning!F150 -> 0 | E145: =renteberegning!K150 -> 0 | F145: =renteberegning!N150 -> 0
A146: 2006-11-01 | B146: =renteberegning!D151 -> 0 | C146: =renteberegning!E151 -> 0 | D146: =renteberegning!F151 -> 0 | E146: =renteberegning!K151 -> 0 | F146: =renteberegning!N151 -> 0
A147: 2006-12-01 | B147: =renteberegning!D152 -> 0 | C147: =renteberegning!E152 -> 0 | D147: =renteberegning!F152 -> 0 | E147: =renteberegning!K152 -> 0 | F147: =renteberegning!N152 -> 0
A148: 2007-01-01 | B148: =renteberegning!D153 -> 0 | C148: =renteberegning!E153 -> 0 | D148: =renteberegning!F153 -> 0 | E148: =renteberegning!K153 -> 0 | F148: =renteberegning!N153 -> 0
A149: 2007-02-01 | B149: =renteberegning!D154 -> 0 | C149: =renteberegning!E154 -> 0 | D149: =renteberegning!F154 -> 0 | E149: =renteberegning!K154 -> 0 | F149: =renteberegning!N154 -> 0
A150: 2007-03-01 | B150: =renteberegning!D155 -> 0 | C150: =renteberegning!E155 -> 0 | D150: =renteberegning!F155 -> 0 | E150: =renteberegning!K155 -> 0 | F150: =renteberegning!N155 -> 0
A151: 2007-04-01 | B151: =renteberegning!D156 -> 0 | C151: =renteberegning!E156 -> 0 | D151: =renteberegning!F156 -> 0 | E151: =renteberegning!K156 -> 0 | F151: =renteberegning!N156 -> 0
A152: 2007-05-01 | B152: =renteberegning!D157 -> 0 | C152: =renteberegning!E157 -> 0 | D152: =renteberegning!F157 -> 0 | E152: =renteberegning!K157 -> 0 | F152: =renteberegning!N157 -> 0
A153: 2007-06-01 | B153: =renteberegning!D158 -> 0 | C153: =renteberegning!E158 -> 0 | D153: =renteberegning!F158 -> 0 | E153: =renteberegning!K158 -> 0 | F153: =renteberegning!N158 -> 0
A154: 2007-07-01 | B154: =renteberegning!D159 -> 0 | C154: =renteberegning!E159 -> 0 | D154: =renteberegning!F159 -> 0 | E154: =renteberegning!K159 -> 0 | F154: =renteberegning!N159 -> 0
A155: 2007-08-01 | B155: =renteberegning!D160 -> 0 | C155: =renteberegning!E160 -> 0 | D155: =renteberegning!F160 -> 0 | E155: =renteberegning!K160 -> 0 | F155: =renteberegning!N160 -> 0
A156: 2007-09-01 | B156: =renteberegning!D161 -> 0 | C156: =renteberegning!E161 -> 0 | D156: =renteberegning!F161 -> 0 | E156: =renteberegning!K161 -> 0 | F156: =renteberegning!N161 -> 0
A157: 2007-10-01 | B157: =renteberegning!D162 -> 0 | C157: =renteberegning!E162 -> 0 | D157: =renteberegning!F162 -> 0 | E157: =renteberegning!K162 -> 0 | F157: =renteberegning!N162 -> 0
A158: 2007-11-01 | B158: =renteberegning!D163 -> 0 | C158: =renteberegning!E163 -> 0 | D158: =renteberegning!F163 -> 0 | E158: =renteberegning!K163 -> 0 | F158: =renteberegning!N163 -> 0
A159: 2007-12-01 | B159: =renteberegning!D164 -> 0 | C159: =renteberegning!E164 -> 0 | D159: =renteberegning!F164 -> 0 | E159: =renteberegning!K164 -> 0 | F159: =renteberegning!N164 -> 0
A160: 2008-01-01 | B160: =renteberegning!D165 -> 0 | C160: =renteberegning!E165 -> 0 | D160: =renteberegning!F165 -> 0 | E160: =renteberegning!K165 -> 0 | F160: =renteberegning!N165 -> 0
A161: 2008-02-01 | B161: =renteberegning!D166 -> 0 | C161: =renteberegning!E166 -> 0 | D161: =renteberegning!F166 -> 0 | E161: =renteberegning!K166 -> 0 | F161: =renteberegning!N166 -> 0
A162: 2008-03-01 | B162: =renteberegning!D167 -> 0 | C162: =renteberegning!E167 -> 0 | D162: =renteberegning!F167 -> 0 | E162: =renteberegning!K167 -> 0 | F162: =renteberegning!N167 -> 0
A163: 2008-04-01 | B163: =renteberegning!D168 -> 0 | C163: =renteberegning!E168 -> 0 | D163: =renteberegning!F168 -> 0 | E163: =renteberegning!K168 -> 0 | F163: =renteberegning!N168 -> 0
A164: 2008-05-01 | B164: =renteberegning!D169 -> 0 | C164: =renteberegning!E169 -> 0 | D164: =renteberegning!F169 -> 0 | E164: =renteberegning!K169 -> 0 | F164: =renteberegning!N169 -> 0
A165: 2008-06-01 | B165: =renteberegning!D170 -> 0 | C165: =renteberegning!E170 -> 0 | D165: =renteberegning!F170 -> 0 | E165: =renteberegning!K170 -> 0 | F165: =renteberegning!N170 -> 0
A166: 2008-07-01 | B166: =renteberegning!D171 -> 0 | C166: =renteberegning!E171 -> 0 | D166: =renteberegning!F171 -> 0 | E166: =renteberegning!K171 -> 0 | F166: =renteberegning!N171 -> 0
A167: 2008-08-01 | B167: =renteberegning!D172 -> 0 | C167: =renteberegning!E172 -> 0 | D167: =renteberegning!F172 -> 0 | E167: =renteberegning!K172 -> 0 | F167: =renteberegning!N172 -> 0
A168: 2008-09-01 | B168: =renteberegning!D173 -> 0 | C168: =renteberegning!E173 -> 0 | D168: =renteberegning!F173 -> 0 | E168: =renteberegning!K173 -> 0 | F168: =renteberegning!N173 -> 0
A169: 2008-10-01 | B169: =renteberegning!D174 -> 0 | C169: =renteberegning!E174 -> 0 | D169: =renteberegning!F174 -> 0 | E169: =renteberegning!K174 -> 0 | F169: =renteberegning!N174 -> 0
A170: 2008-11-01 | B170: =renteberegning!D175 -> 0 | C170: =renteberegning!E175 -> 0 | D170: =renteberegning!F175 -> 0 | E170: =renteberegning!K175 -> 0 | F170: =renteberegning!N175 -> 0
A171: 2008-12-01 | B171: =renteberegning!D176 -> 0 | C171: =renteberegning!E176 -> 0 | D171: =renteberegning!F176 -> 0 | E171: =renteberegning!K176 -> 0 | F171: =renteberegning!N176 -> 0
A172: 2009-01-01 | B172: =renteberegning!D177 -> 0 | C172: =renteberegning!E177 -> 0 | D172: =renteberegning!F177 -> 0 | E172: =renteberegning!K177 -> 0 | F172: =renteberegning!N177 -> 0
A173: 2009-02-01 | B173: =renteberegning!D178 -> 0 | C173: =renteberegning!E178 -> 0 | D173: =renteberegning!F178 -> 0 | E173: =renteberegning!K178 -> 0 | F173: =renteberegning!N178 -> 0
A174: 2009-03-01 | B174: =renteberegning!D179 -> 0 | C174: =renteberegning!E179 -> 0 | D174: =renteberegning!F179 -> 0 | E174: =renteberegning!K179 -> 0 | F174: =renteberegning!N179 -> 0
A175: 2009-04-01 | B175: =renteberegning!D180 -> 0 | C175: =renteberegning!E180 -> 0 | D175: =renteberegning!F180 -> 0 | E175: =renteberegning!K180 -> 0 | F175: =renteberegning!N180 -> 0
A176: 2009-05-01 | B176: =renteberegning!D181 -> 0 | C176: =renteberegning!E181 -> 0 | D176: =renteberegning!F181 -> 0 | E176: =renteberegning!K181 -> 0 | F176: =renteberegning!N181 -> 0
A177: 2009-06-01 | B177: =renteberegning!D182 -> 0 | C177: =renteberegning!E182 -> 0 | D177: =renteberegning!F182 -> 0 | E177: =renteberegning!K182 -> 0 | F177: =renteberegning!N182 -> 0
A178: 2009-07-01 | B178: =renteberegning!D183 -> 0 | C178: =renteberegning!E183 -> 0 | D178: =renteberegning!F183 -> 0 | E178: =renteberegning!K183 -> 0 | F178: =renteberegning!N183 -> 0
A179: 2009-08-01 | B179: =renteberegning!D184 -> 0 | C179: =renteberegning!E184 -> 0 | D179: =renteberegning!F184 -> 0 | E179: =renteberegning!K184 -> 0 | F179: =renteberegning!N184 -> 0
A180: 2009-09-01 | B180: =renteberegning!D185 -> 0 | C180: =renteberegning!E185 -> 0 | D180: =renteberegning!F185 -> 0 | E180: =renteberegning!K185 -> 0 | F180: =renteberegning!N185 -> 0
A181: 2009-10-01 | B181: =renteberegning!D186 -> 0 | C181: =renteberegning!E186 -> 0 | D181: =renteberegning!F186 -> 0 | E181: =renteberegning!K186 -> 0 | F181: =renteberegning!N186 -> 0
A182: 2009-11-01 | B182: =renteberegning!D187 -> 0 | C182: =renteberegning!E187 -> 0 | D182: =renteberegning!F187 -> 0 | E182: =renteberegning!K187 -> 0 | F182: =renteberegning!N187 -> 0
A183: 2009-12-01 | B183: =renteberegning!D188 -> 0 | C183: =renteberegning!E188 -> 0 | D183: =renteberegning!F188 -> 0 | E183: =renteberegning!K188 -> 0 | F183: =renteberegning!N188 -> 0
A184: 2010-01-01 | B184: =renteberegning!D189 -> 0 | C184: =renteberegning!E189 -> 0 | D184: =renteberegning!F189 -> 0 | E184: =renteberegning!K189 -> 0 | F184: =renteberegning!N189 -> 0
A185: 2010-02-01 | B185: =renteberegning!D190 -> 0 | C185: =renteberegning!E190 -> 0 | D185: =renteberegning!F190 -> 0 | E185: =renteberegning!K190 -> 0 | F185: =renteberegning!N190 -> 0
A186: 2010-03-01 | B186: =renteberegning!D191 -> 0 | C186: =renteberegning!E191 -> 0 | D186: =renteberegning!F191 -> 0 | E186: =renteberegning!K191 -> 0 | F186: =renteberegning!N191 -> 0
A187: 2010-04-01 | B187: =renteberegning!D192 -> 0 | C187: =renteberegning!E192 -> 0 | D187: =renteberegning!F192 -> 0 | E187: =renteberegning!K192 -> 0 | F187: =renteberegning!N192 -> 0
A188: 2010-05-01 | B188: =renteberegning!D193 -> 0 | C188: =renteberegning!E193 -> 0 | D188: =renteberegning!F193 -> 0 | E188: =renteberegning!K193 -> 0 | F188: =renteberegning!N193 -> 0
A189: 2010-06-01 | B189: =renteberegning!D194 -> 0 | C189: =renteberegning!E194 -> 0 | D189: =renteberegning!F194 -> 0 | E189: =renteberegning!K194 -> 0 | F189: =renteberegning!N194 -> 0
A190: 2010-07-01 | B190: =renteberegning!D195 -> 0 | C190: =renteberegning!E195 -> 0 | D190: =renteberegning!F195 -> 0 | E190: =renteberegning!K195 -> 0 | F190: =renteberegning!N195 -> 0
A191: 2010-08-01 | B191: =renteberegning!D196 -> 0 | C191: =renteberegning!E196 -> 0 | D191: =renteberegning!F196 -> 0 | E191: =renteberegning!K196 -> 0 | F191: =renteberegning!N196 -> 0
A192: 2010-09-01 | B192: =renteberegning!D197 -> 0 | C192: =renteberegning!E197 -> 0 | D192: =renteberegning!F197 -> 0 | E192: =renteberegning!K197 -> 0 | F192: =renteberegning!N197 -> 0
A193: 2010-10-01 | B193: =renteberegning!D198 -> 0 | C193: =renteberegning!E198 -> 0 | D193: =renteberegning!F198 -> 0 | E193: =renteberegning!K198 -> 0 | F193: =renteberegning!N198 -> 0
A194: 2010-11-01 | B194: =renteberegning!D199 -> 0 | C194: =renteberegning!E199 -> 0 | D194: =renteberegning!F199 -> 0 | E194: =renteberegning!K199 -> 0 | F194: =renteberegning!N199 -> 0
A195: 2010-12-01 | B195: =renteberegning!D200 -> 0 | C195: =renteberegning!E200 -> 0 | D195: =renteberegning!F200 -> 0 | E195: =renteberegning!K200 -> 0 | F195: =renteberegning!N200 -> 0
A196: 2011-01-01 | B196: =renteberegning!D201 -> 0 | C196: =renteberegning!E201 -> 0 | D196: =renteberegning!F201 -> 0 | E196: =renteberegning!K201 -> 0 | F196: =renteberegning!N201 -> 0
A197: 2011-02-01 | B197: =renteberegning!D202 -> 0 | C197: =renteberegning!E202 -> 0 | D197: =renteberegning!F202 -> 0 | E197: =renteberegning!K202 -> 0 | F197: =renteberegning!N202 -> 0
A198: 2011-03-01 | B198: =renteberegning!D203 -> 0 | C198: =renteberegning!E203 -> 0 | D198: =renteberegning!F203 -> 0 | E198: =renteberegning!K203 -> 0 | F198: =renteberegning!N203 -> 0
A199: 2011-04-01 | B199: =renteberegning!D204 -> 0 | C199: =renteberegning!E204 -> 0 | D199: =renteberegning!F204 -> 0 | E199: =renteberegning!K204 -> 0 | F199: =renteberegning!N204 -> 0
A200: 2011-05-01 | B200: =renteberegning!D205 -> 0 | C200: =renteberegning!E205 -> 0 | D200: =renteberegning!F205 -> 0 | E200: =renteberegning!K205 -> 0 | F200: =renteberegning!N205 -> 0
... 139 more rows
